Cogmind - Beta 11 @@@ ROGUE MODE // 2022.04.03 @ 11:20:21 Player: aperiodic Result: Destroyed by H-88 Terminator with KE Penetrator Performance ------------- Evolutions (8) 4000 Regions Visited (29) 5800 Robots Destroyed (384) 1920 Value Destroyed (16107) 16107 Prototype IDs (135) 2700 Alien Tech Used (7) 1400 Bonus (13401) 13401 TOTAL SCORE: 45328 Bonus ------- High Alert Combat Kills 3351 Follower Combat Kills 4981 Network Hubs Disabled 200 Aligned with FarCom 300 Met Data Miner 300 Met Imprinter 300 Was Imprinted 300 Met Zhirov 300 A7 Reached Mainframe 300 Met R17 at Cetus 500 Read Decrypted Archives 300 Used Core Reset Matrix 3000 Scanned by Researcher 500 Friendly Fire -1231 Cogmind --------- Core Integrity 0/1450 Matter 44/300 Energy 600/600 System Corruption 4% Temperature Cool (0) Movement Hovering (60) Location -2/Section 7 Parts ------- > --- POWER (2) -------- (None) > --- PROPULSION (8) --- Experimental Gyrokinetic Inverter > --- UTILITY (9) ------ 2N-1CE's Frost Array Advanced Energy Well Machine Analyzer Advanced Signal Interpreter > --- WEAPON (4) ------- (None) > --- INVENTORY (5) ---- Graphene Brace Phase Redirector Phasing AFG Potential Cannon Peak State ------------ > --- POWER ------------ Matter Drive > --- PROPULSION ------- Combat Gravmag System Combat Gravmag System Combat Gravmag System Combat Gravmag System Combat Gravmag System Improved Gyrokinetic Inverter Cooled Antigrav System Experimental Gyrokinetic Inverter > --- UTILITY ---------- 2N-1CE's Frost Array Medium Storage Unit Experimental Energy Well Machine Analyzer Advanced Signal Interpreter Quantum Capacitor Experimental Force Field Phase Redirector > --- WEAPON ----------- Potential Cannon Omega Cannon > --- INVENTORY -------- Advanced Energy Well Zionite Biocell Zionite Biocell Advanced Sensor Array Graphene Brace Phasing AFG Transdimensional Reconstructor [Rating: 201] Favorites ----------- Power Light Antimatter Reactor Engine Reinforced Deuterium Engine Power Core Micro Nuclear Core Reactor Light Antimatter Reactor Propulsion Compact Wheel Treads Improved Heavy Treads Leg Advanced Myomer Leg Wheel Compact Wheel Hover Unit Combat Gravmag System Flight Unit Xenon Bombardment Thruster Utility Huge Storage Unit Device Structural Scanner Storage Huge Storage Unit Processor Transport Network Coupler Hackware Hacking Suite Protection Hardened Light Armor Plating Artifact Phase Redirector Weapon Advanced KE Penetrator Energy Gun Beamcaster Energy Cannon Advanced Beam Cannon Ballistic Gun Advanced KE Penetrator Ballistic Cannon Antimatter Cannon Launcher Precision Grenade Launcher Special Weapon Remote Datajack Impact Weapon Great Maul Slashing Weapon Phasing Sabre Special Melee Weapon Advanced Datajack Build | -11 -10 -10 -10 -9 -8 -7 -7 -7 -6 -6 -6 -6 -6 -5 -5 -5 -5 -5 -4 -4 -4 -4 -4 -4 -3 -3 -2 -2 -2 ------- Run | Scr Mat Min Exi Min Mat Fac Low Dat Pro Fac Low Low Zio Pro Fac Upp Upp Zhi Pro Fac Ext Cet Arc Hub Res Tes Res Qua Sec Slots Evolved 16 | . . . . . 4 2 . . . 2 . . . . 2 . . . . 2 . . . . 2 . 2 . . Power 1 | . . . . . . . . . . 1 . . . . . . . . . . . . . . . . . . . Propulsion 6 | . . . . . . 2 . . . . . . . . 2 . . . . . . . . . . . 2 . . Utility 7 | . . . . . 4 . . . . 1 . . . . . . . . . . . . . . 2 . . . . Weapon 2 | . . . . . . . . . . . . . . . . . . . . 2 . . . . . . . . . Parts Attached 634 | 8 21 4 1 5 95 20 17 . 13 40 13 14 14 19 45 1 6 13 1 37 27 11 8 41 52 42 47 13 6 Power 50 | 1 1 . . . 3 1 . . . 3 . 2 . 4 4 . 2 1 . 2 3 2 1 4 4 7 3 1 1 Engine 14 | 1 1 . . . 3 1 . . . 3 . . . 3 1 . . . . . . . . . 1 . . . . Core 12 | . . . . . . . . . . . . 1 . 1 2 . 1 . . 2 2 . . 1 1 . . . 1 Reactor 24 | . . . . . . . . . . . . 1 . . 1 . 1 1 . . 1 2 1 3 2 7 3 1 . Propulsion 182 | 3 12 . . 1 48 10 6 . 2 12 4 1 3 3 8 . 2 3 . 3 13 1 . 5 14 11 17 . . Treads 65 | . 6 . . . 24 3 3 . 2 2 . . 1 2 . . 2 . . 1 9 1 . 5 3 1 . . . Leg 19 | . . . . . . . . . . . . . 2 1 . . . 3 . 2 4 . . . 4 2 1 . . Wheel 81 | 3 6 . . 1 24 7 3 . . 10 4 1 . . 8 . . . . . . . . . 4 8 2 . . Hover 14 | . . . . . . . . . . . . . . . . . . . . . . . . . . . 14 . . Flight 3 | . . . . . . . . . . . . . . . . . . . . . . . . . 3 . . . . Utility 216 | 2 4 3 1 1 22 7 5 . 2 14 7 8 4 4 16 . 2 6 . 14 6 2 6 20 17 12 19 8 4 Device 111 | 1 2 3 . . 7 3 3 . 2 6 6 5 4 3 9 . . 3 . 7 2 . 3 11 9 8 10 3 1 Storage 25 | 1 2 . . 1 . . . . . . . . . . 2 . . . . . . . . 1 3 3 6 3 3 Processor 11 | . . . . . . . . . . 3 . . . 1 2 . . . . 2 . . 1 1 1 . . . . Hackware 9 | . . . . . . 3 . . . 2 . . . . 2 . . . . 1 . . . . 1 . . . . Protection 58 | . . . 1 . 15 1 2 . . 3 1 3 . . 1 . 2 3 . 4 4 2 2 7 3 1 3 . . Artifact 2 | . . . . . . . . . . . . . . . . . . . . . . . . . . . . 2 . Weapon 186 | 2 4 1 . 3 22 2 6 . 9 11 2 3 7 8 17 1 . 3 1 18 5 6 1 12 17 12 8 4 1 Energy Gun 37 | 1 3 . . 2 3 . 2 . 2 1 . . . . 7 . . . . 6 3 1 . 1 4 . 1 . . Energy Cannon 40 | . . . . . 4 1 . . 2 3 1 2 . . 3 . . . . 5 . 1 . 3 4 4 6 1 . Ballistic Gun 39 | 1 . . . 1 9 . . . 1 2 . . 4 . . . . . 1 1 1 3 . 7 6 2 . . . Ballistic Cannon 15 | . . . . . 1 . . . . 3 . 1 . 1 2 . . 1 . . . . . . . 2 . 3 1 Launcher 26 | . . 1 . . . . 2 . 4 2 . . 2 2 2 1 . 1 . 3 1 . . 1 2 1 1 . . Special Weapon 11 | . 1 . . . 2 . 1 . . . . . . 4 . . . 1 . 2 . . . . . . . . . Impact Weapon 5 | . . . . . 2 1 1 . . . 1 . . . . . . . . . . . . . . . . . . Slashing Weapon 10 | . . . . . . . . . . . . . 1 1 3 . . . . 1 . 1 1 . . 2 . . . Piercing Weapon . | . . . . . . . . . . . . . . . . . . . . . . . . . . . . . . Special Melee Weapon 3 | . . . . . 1 . . . . . . . . . . . . . . . . . . . 1 1 . . . Unidentified Prototypes 55 | . . . . . 4 . . . . . . . 4 . 1 . . 5 . 2 3 4 2 5 6 7 5 6 1 Corrupted Parts 7 | . . . . . . . . . 1 1 . . . 1 . . . . . . . 2 . . 1 1 . . . System Corruption 29 | . . . . . . . . . 6 2 . . . 2 . . . . . . . 14 . . 4 1 . . . Parts Lost 159 | . 3 1 . . 3 2 2 . 6 17 . 11 . 6 11 5 3 . . 4 3 . 2 7 25 19 12 4 13 Power 24 | . 1 . . . . . . . . 2 . 2 . 1 4 1 . . . . . . . 1 4 4 2 . 2 Propulsion 48 | . 1 . . . . . . . 3 6 . 4 . 1 3 2 2 . . . 1 . . 2 8 6 3 2 4 Utility 51 | . . 1 . . 3 2 2 . 2 3 . 3 . 3 4 . 1 . . 3 1 . 2 3 4 4 3 2 5 Weapon 36 | . 1 . . . . . . . 1 6 . 2 . 1 . 2 . . . 1 1 . . 1 9 5 4 . 2 Highest Loss Streak 10 | . 2 1 . . 1 2 1 . 3 10 . 6 . 4 3 5 2 . . 4 2 . 2 4 9 8 6 3 10 To Critical Strikes 1 | . . . . . . . . . . . . . . . . . . . . . 1 . . . . . . . . Average Slot Usage (%) 86 | . 99 99 76 89 97 100 99 100 87 91 89 68 72 94 89 77 67 72 88 93 92 80 83 81 77 84 86 77 53 Engine 4 | . 13 14 14 14 9 7 7 7 7 9 13 3 . 4 3 . . . . . . . . . . . . . . Core 2 | . . . . . . . . . . . . 3 6 5 3 . 2 5 5 5 8 3 . 1 2 2 . . 1 Reactor 2 | . . . . . . . . . . . . 2 6 . 1 2 4 5 5 5 1 6 10 8 2 4 7 4 1 Treads 5 | . 4 . . . 2 6 . . 10 3 . . 2 14 5 . 10 11 11 6 4 15 15 15 9 2 . . . Leg 3 | . . . . . . . . . . . . . 4 8 . . . 8 17 21 24 . . . 2 2 . . . Wheel 11 | . 23 28 28 28 15 23 29 30 11 19 26 13 6 . 21 24 5 2 . . . . . . 5 19 9 . . Hover 1 | . . . . . . . . . . . . . . . . . . . . . . . . . . . 18 33 15 Device 11 | . 14 13 7 . 7 11 14 23 25 18 8 11 14 20 9 11 7 2 . 2 9 5 7 10 11 16 13 13 8 Storage 7 | . 14 14 14 14 9 7 7 7 7 6 6 6 6 6 6 5 5 5 5 5 5 5 5 5 7 8 9 9 12 Processor 7 | . . . . . . . . . . 8 13 7 6 7 15 17 17 17 17 20 8 5 5 10 11 13 8 8 8 Hackware 1 | . . . . . . 15 5 . . 7 . . . . 2 . . . . 2 5 5 1 . 1 . . . . Protection 9 | . . . 6 14 36 9 17 15 8 2 6 8 13 7 2 5 4 7 11 3 4 12 14 6 1 . 3 . . Energy Gun 4 | . 22 16 2 12 2 7 11 15 3 3 . . . . 4 6 . . . 3 20 12 . 1 1 2 1 . . Energy Cannon 2 | . . . . . 1 6 1 . 9 5 5 2 . . 1 . . . . 2 . 2 . 2 3 3 6 4 2 Ballistic Gun 3 | . 4 . . 5 8 . . . . 1 . . 4 5 . . . . 3 4 . 4 15 16 8 2 1 . . Ballistic Cannon 1 | . . . . . 3 . . . . . 6 5 . 1 1 . . . 5 4 . . . . . . . . 2 Naked Turns . | . . . . . . . . . . . . . . . . . . . . . . . . . . . . . . Heaviest Build 186 | 12 50 52 50 95 118 114 126 120 120 132 132 132 122 122 131 118 126 147 147 157 151 160 166 167 151 186 181 101 86 Greatest Support 230 | 26 40 26 26 32 40 64 64 64 64 58 58 50 10 78 78 56 97 97 90 135 225 230 230 230 155 92 109 109 82 Greatest Overweight (x) 14 | . 2 1 1 2 3 2 1 1 7 7 2 11 12 12 6 2 7 7 1 1 1 . . . 8 2 4 1 14 Average Overweight (x) 2 | . 1 1 1 1 2 1 1 1 4 2 2 5 11 3 1 1 6 4 1 . . . . . 1 1 . . . Largest Inventory Capacity 25 | 8 20 20 20 25 25 25 25 25 25 25 25 25 25 25 25 25 25 25 25 25 25 25 25 25 25 25 25 10 10 Average Capacity 23 | 7 19 20 20 21 25 25 25 25 25 25 25 25 25 25 25 25 25 25 25 25 25 25 25 25 25 25 18 10 8 Most Carried 25 | 6 20 20 20 21 25 25 25 24 25 25 25 24 25 25 25 24 24 25 25 25 25 25 25 25 25 25 25 10 10 Average Carried 21 | 3 12 17 18 20 23 24 23 24 24 24 23 18 19 24 23 23 22 24 24 24 24 24 24 24 23 24 18 9 7 Final Capacity 25 | 8 20 20 20 25 25 25 25 25 25 25 25 25 25 25 25 25 25 25 25 25 25 25 25 25 25 25 10 10 5 Final Carried 25 | 6 20 15 20 21 25 24 24 24 25 16 24 17 25 24 24 23 24 24 25 25 24 25 24 25 25 25 8 10 5 Class Distribution -------------------- 37% | Mutant 28% | Scavenger-Mutant 9% | Derelict-Mutant 4% | Hacker-Mutant 3% | Scavenger-Skirmisher 3% | Commander-Tank 3% | Trapper-Mutant Dominant Class ---------------- Mutant | -10/Materials Mutant | -10/Mines Mutant | -10/Exiles Trapper-Mutant | -9/Mines Mutant | -8/Materials Hacker-Mutant | -7/Factory Mutant | -7/Lower Caves Mutant | -7/Data Miner Mutant | -6/Proximity Caves Scavenger-Mutant | -6/Factory Scavenger-Mutant | -6/Lower Caves Mutant | -6/Lower Caves Mutant | -6/Zion Scavenger-Mutant | -5/Proximity Caves Scavenger-Mutant | -5/Factory Scavenger-Mutant | -5/Upper Caves Mutant | -5/Upper Caves Derelict-Mutant | -5/Zhirov Derelict-Mutant | -4/Proximity Caves Mutant | -4/Factory Commander-Tank | -4/Extension Commander-Mutant | -4/Cetus Scavenger-Mutant | -4/Archives Scavenger-Skirmisher | -4/Hub_04(d) Scavenger-Mutant | -3/Research Scavenger-Mutant | -3/Testing Messiah-Mutant | -2/Research Mutant | -2/Quarantine Alien-Mutant | -2/Section 7 Resources | -11 -10 -10 -10 -9 -8 -7 -7 -7 -6 -6 -6 -6 -6 -5 -5 -5 -5 -5 -4 -4 -4 -4 -4 -4 -3 -3 -2 -2 -2 ----------- Run | Scr Mat Min Exi Min Mat Fac Low Dat Pro Fac Low Low Zio Pro Fac Upp Upp Zhi Pro Fac Ext Cet Arc Hub Res Tes Res Qua Sec Matter Collected 14568 | 271 390 93 51 131 2106 180 283 . 214 746 198 295 354 1170 987 18 370 161 243 649 321 126 . 2137 1103 1400 494 57 20 Remotely 817 | . . . . . . . . . . . . . . . . . . . . . . . . 480 337 . . . . Salvage Created 18044 | 77 641 44 . 150 1734 534 293 . 309 1038 99 261 . 397 1728 48 53 130 188 1158 955 64 . 3259 1719 1900 1031 200 34 Parts 817 | 8 37 4 . 4 96 27 12 . 19 49 5 22 . 11 64 4 6 12 6 39 17 2 . 144 82 86 48 12 1 Haulers Intercepted 18 | . 2 . . . 5 1 . . . . . . . . 3 . . . . . . . . 5 1 1 . . . Recyclers Shooed 16 | . 1 . . 1 5 . . . . 2 . . . . 4 . . . . . 1 . . . 2 . . . . Parts Field Recycled . | . . . . . . . . . . . . . . . . . . . . . . . . . . . . . . Retrieved Matter . | . . . . . . . . . . . . . . . . . . . . . . . . . . . . . . Parts Self-Destructed 81 | . . . . . . . 7 . 15 . . 16 . 20 . 4 4 12 3 . . . . . . . . . . Prevented 16 | . . . . . . . 2 . 3 . . 4 1 6 . . . . . . . . . . . . . . . Kills | -11 -10 -10 -10 -9 -8 -7 -7 -7 -6 -6 -6 -6 -6 -5 -5 -5 -5 -5 -4 -4 -4 -4 -4 -4 -3 -3 -2 -2 -2 ------- Run | Scr Mat Min Exi Min Mat Fac Low Dat Pro Fac Low Low Zio Pro Fac Upp Upp Zhi Pro Fac Ext Cet Arc Hub Res Tes Res Qua Sec Combat Hostiles Destroyed 264 | . 11 2 . . 21 7 8 . 11 18 2 12 . 11 20 2 7 . 4 19 8 . . 32 22 22 16 7 2 Melee 5 | . . . . . . . . . . . . . . . 1 . . . . 4 . . . . . . . . . Guns 102 | . 11 . . . 8 3 1 . 2 8 . . . 4 8 . . . 1 . 6 . . 30 10 9 1 . . Cannons 68 | . . . . . 13 4 . . . 5 2 12 . 1 6 . . . 1 3 . . . . 6 7 6 . 2 AOE 77 | . . 2 . . . . 6 . 8 4 . . . 6 5 2 7 . 2 12 . . . 1 4 4 7 7 . Classes Destroyed 24 | 2 5 . . . 5 1 1 . 1 . 2 1 . . . . . . . 2 . . . 1 1 2 . . . Worker 26 | . 3 1 . . 5 . . . . 3 . . . . 5 . . . . 1 . . . 3 2 3 . . . Builder 16 | . . . . . 1 . . . . 3 . . . . 3 . . . . . . . . 3 . 2 4 . . Tunneler 4 | 1 1 . . . . . . . . 1 . . . . . . . . . . . . . . 1 . . . . Hauler 18 | . 2 . . . 5 1 . . . . . . . . 3 . . . . . . . . 5 1 1 . . . Recycler 28 | 1 1 . . 2 6 2 . . . 2 . . . . 3 . . . . 2 3 . . 3 1 1 1 . . Minesweeper 1 | . . . . . . . . . . . 1 . . . . . . . . . . . . . . . . . . Mechanic 2 | . . . . . . . . . . . . . . . . . . . . 1 . . . . 1 . . . . Operator 4 | . . . . . 1 1 . . . . . . . . 1 . . . . . 1 . . . . . . . . Watcher 16 | . 1 . . . 3 2 . . . 2 . . . 2 2 . . . . . . . . 2 1 . 1 . . Swarmer 69 | . 3 . . . . 5 1 . 8 7 . 6 . 2 4 2 4 . . 8 . . . . 5 . 8 5 1 Grunt 90 | . 8 2 . . 10 . 6 . 2 5 . . . 5 10 . 2 . 3 7 2 . . 9 2 15 . 2 . Brawler 3 | . . . . . . . . . . . . . . . . . . . . 1 . . . . 2 . . . . Duelist 7 | . . . . . 1 . . . . . . 2 . 1 1 . . . . . . . . . 2 . . . . Researcher 2 | . . . . . . . . . . . . . . . . . . . . . . . . . . 2 . . . Sentry 29 | . . . . . 8 1 . . . 2 . 1 . 3 1 . . . 1 . 5 . . 5 . . 1 . 1 Specialist 4 | . . . . . . . . . . . . . . . . . . . . . . . . . 4 . . . . Hunter 18 | . . . . . 2 . . . 1 . . . . . 1 . . . . . . . . 10 . 2 2 . . Programmer 38 | . . . . . . 1 . . . 4 . 2 . . 4 . 1 . . 3 . . . 7 7 4 5 . . Heavy 1 | . . . . . . . . . . . . . . . . . . . . . . . . 1 . . . . . Striker 1 | . . . . . . . . . . . . . . . . . . . . . . . . . . 1 . . . Z-Courier 1 | . . . . . . . . . . . . . . . . . . . . . . . . . 1 . . . . Decomposer 2 | . . . . . . . . . . . . 1 . . . 1 . . . . . . . . . . . . . Tinkerer 1 | . . . . . . . . . 1 . . . . . . . . . . . . . . . . . . . . Master Thief 1 | . . . . . . . . . . . . 1 . . . . . . . . . . . . . . . . . Thug 2 | . . . . . . . 1 . . . . . . . . . . . . . 1 . . . . . . . . Butcher 1 | . . . . . . . . . . . . . . . . . . . . . . 1 . . . . . . . Fireman 2 | . . . . . . . . . . . 2 . . . . . . . . . . . . . . . . . . Mutant 1 | . . . . . . . 1 . . . . . . . . . . . . . . . . . . . . . . Best Kill Streak 10 | 2 3 2 . 2 5 3 4 . 5 4 2 5 . 4 5 2 4 . 3 6 4 . . 8 6 10 7 5 1 Combat Bots Only 8 | . 3 2 . . 4 3 4 . 5 4 2 5 . 4 4 2 4 . 3 4 2 . . 8 5 7 5 5 1 Max Kills in Single Turn 5 | 1 1 1 . 1 2 1 2 . 3 2 1 1 . 2 2 2 2 . 1 2 1 1 . 2 2 3 5 2 1 Gunslinging 1 | . . . . . . . . . . . . . . . . . . . . . . . . 1 . . . . . Exploded 4 | . . 1 . . . . 2 . 3 2 . . . 2 2 2 2 . 1 2 . . . 1 2 3 4 2 . Melee 1 | . . . . . . . . . . . . . . . 1 . . . . 1 . . . . . . . . . Uniques/NPCs Destroyed . | . . . . . . . . . . . . . . . . . . . . . . . . . . . . . . Combat | -11 -10 -10 -10 -9 -8 -7 -7 -7 -6 -6 -6 -6 -6 -5 -5 -5 -5 -5 -4 -4 -4 -4 -4 -4 -3 -3 -2 -2 -2 -------- Run | Scr Mat Min Exi Min Mat Fac Low Dat Pro Fac Low Low Zio Pro Fac Upp Upp Zhi Pro Fac Ext Cet Arc Hub Res Tes Res Qua Sec Damage Taken 33032 | . 674 41 . . 1385 658 381 . 826 2237 202 1405 . 906 1444 405 259 . 403 1421 488 11 1311 4870 4633 3723 1728 1353 2268 Core 3793 | . 127 14 . . 149 91 30 . 141 233 . 201 . 87 159 16 . . 65 96 48 . 50 147 663 425 177 242 632 Absorbed by Shields 3751 | . . . . . . 117 78 . 270 388 . . . . 257 21 35 . . . 82 . . 432 . 105 839 778 349 Reduced by Siege Mode 565 | . . . . . . . . . . . . . . . . . . . . . . . . 501 64 . . . . Redirected to Core 105 | . . . . . . . . . . . . . . . . . . . . . . . . . . . . 105 . Redirected to Shielding 331 | . . . . . . . . . . . . . . . . . . . . . . . 154 . . . 177 . . Core Remaining (%) 59 | 100 . . . 43 72 . . . 62 . . . . 38 . . . . 76 . . . . 70 . 16 . . . Volleys Fired 1106 | 7 67 7 . 3 137 38 19 . 27 99 19 46 . 64 90 3 19 17 8 37 25 5 . 94 110 93 48 14 10 Largest 4 | 2 2 1 . 2 2 2 1 . 2 2 1 2 . 2 2 2 1 1 2 4 4 1 . 4 4 2 2 1 1 Hottest 344 | 60 105 40 . 105 129 129 61 . 125 129 69 130 . 81 176 176 36 20 73 313 313 240 . 260 344 190 240 300 300 Shots Fired 1905 | 14 122 9 . 5 247 76 19 . 32 177 19 53 . 88 120 5 19 17 10 43 94 6 . 300 218 133 55 14 10 Gun 1164 | 14 121 3 . 5 162 38 5 . 18 76 . . . 26 77 4 . . 2 6 93 3 . 276 158 72 5 . . Cannon 569 | . . . . . 71 38 . . 4 95 19 53 . 22 37 . . . 5 18 . 3 . 19 53 58 50 14 10 Launcher 99 | . . 6 . . . . 8 . 10 6 . . . 15 6 1 19 . 3 9 1 . . 5 7 3 . . . Special 73 | . 1 . . . 14 . 6 . . . . . . 25 . . . 17 . 10 . . . . . . . . . Kinetic 886 | 7 28 . . . 180 . . . . 62 16 35 . 48 11 . . . 7 3 . 1 . 263 143 76 . 3 3 Thermal 808 | 7 94 3 . 5 67 76 1 . . 105 . 7 . . 103 4 . 17 . 21 93 5 . 32 55 44 51 11 7 Explosive 85 | . . 6 . . . . 8 . 10 6 . . . 15 6 1 19 . 3 9 . . . . 2 . . . . Electromagnetic 81 | . . . . . . . 4 . 22 4 3 11 . . . . . . . . 1 . . 5 14 13 4 . . Phasic 4 | . . . . . . . . . . . . . . . . . . . . . . . . . 4 . . . . Robot Hit Streak 64 | 4 19 5 . 5 24 8 8 . 5 19 7 10 . 13 18 7 12 21 25 16 12 . . 40 64 19 19 2 7 Robot Miss Streak 10 | 3 3 2 . . 10 3 2 . 3 8 1 8 . 5 4 . 4 . 1 1 3 2 . 5 3 3 4 1 1 Penetration Max 1 | . . . . . . . . . . . . . . . . . . . . . . . . 1 1 1 . . . Secondary Targets 21 | . 3 . . . 1 . . . . . . . . . . . . . . . 1 . . 11 3 2 . . . Max Gunslinging Chain 2 | . 1 . . . 1 . . . . . . . . . . . . . . . 1 . . 2 1 1 . . . Capacitor 38 | . . . . . . . . . . . . . . . . . . . . . . . . . . . 24 7 7 Shots Hit Robots 1285 | 9 84 6 . 4 173 48 16 . 15 112 19 41 . 64 90 4 9 17 9 51 61 2 . 202 126 80 36 2 5 Core Hits 796 | 3 31 5 . 3 101 19 23 . 26 61 4 41 . 58 65 4 16 4 12 35 31 4 . 98 61 52 31 7 1 Critical Kills 31 | . . . . . 1 . . . . 1 . . . . 4 . . . . . 1 . . 15 3 5 . . 1 Critical Parts Destroyed 45 | . . . . . . 1 1 . . . 1 . . . 9 1 . . . . 3 . . 16 5 7 . . 1 Critical Strikes 100 | . . . . . 5 1 1 . . 5 1 1 . . 14 1 . . . 4 7 . . 32 8 14 . . 6 Burn 10 | . . . . . 4 . . . . 3 . . . . . . . . . . 3 . . . . . . . . Destroy 76 | . . . . . . . . . . 1 . . . . 13 1 . . . . 4 . . 32 8 13 . . 4 Blast 5 | . . . . . . . . . . 1 . 1 . . . . . . . . . . . . . 1 . . 2 Smash 4 | . . . . . 1 1 1 . . . 1 . . . . . . . . . . . . . . . . . . Sever 5 | . . . . . . . . . . . . . . . 1 . . . . 4 . . . . . . . . . Melee Attacks 71 | . . . . . 3 3 4 . . . 4 . . 2 19 . . . . 25 . 2 1 2 . 6 . . . Impact 14 | . . . . . 3 3 4 . . . 4 . . . . . . . . . . . . . . . . . . Slashing 55 | . . . . . . . . . . . . . . 2 19 . . . . 25 . 2 1 2 . 4 . . . Piercing . | . . . . . . . . . . . . . . . . . . . . . . . . . . . . . . Sneak Attacks 13 | . . . . . 1 . . . . . . . . . 5 . . . . 3 . 2 . . . 2 . . . Combat Hostiles 2 | . . . . . . . . . . . . . . . . . . . . . . . . . . 2 . . . Follow-up Attacks . | . . . . . . . . . . . . . . . . . . . . . . . . . . . . . . Damage Inflicted 47116 | 106 1059 280 . 57 3390 1094 954 . 1404 3081 689 1161 . 2018 4362 293 923 224 512 2788 1627 267 . 6760 4504 4018 3474 1074 997 Guns 18774 | 106 1056 11 . 57 1850 530 42 . 252 1074 . . . 378 1539 81 . . 43 60 1535 22 . 5689 2668 1678 103 . . Cannons 13590 | . . . . . 1418 460 . . 85 1470 521 1161 . 520 843 . . . 142 633 . 105 . 330 960 1518 2175 252 997 Explosions 12297 | . . 269 . . . . 827 . 1067 537 . . . 1120 1330 212 923 . 327 1198 92 . . 706 868 803 1196 822 . Melee 2166 | . . . . . 122 104 85 . . . 168 . . . 650 . . . . 897 . 140 . . . . . . . Ramming 65 | . 3 . . . . . . . . . . . . . . . . . . . . . . 35 8 19 . . . Kinetic 16287 | 60 227 . . . 2471 . . . . 887 474 776 . 898 264 . . . 185 19 . 22 . 5388 2295 2124 . . 197 Thermal 17499 | 46 829 11 . 57 797 990 . . 192 1660 . 188 . . 2118 81 . 224 . 674 1535 105 . 781 1121 1015 3201 1074 800 Explosive 7826 | . . 269 . . . . 827 . 875 454 . . . 1120 1330 212 923 . 327 1198 . . . . 291 . . . . Electromagnetic 3235 | . . . . . . . 42 . 337 80 47 197 . . . . . . . . 92 . . 556 751 860 273 . . Impact 479 | . . . . . 122 104 85 . . . 168 . . . . . . . . . . . . . . . . . . Slashing 1687 | . . . . . . . . . . . . . . . 650 . . . . 897 . 140 . . . . . . . Piercing . | . . . . . . . . . . . . . . . . . . . . . . . . . . . . . . Phasic 38 | . . . . . . . . . . . . . . . . . . . . . . . . . 38 . . . . Highest Corruption 36 | . 6 6 6 6 . . . . 6 6 6 8 8 2 3 3 3 3 3 3 3 17 17 11 27 36 5 5 4 Average Corruption 7 | . 5 6 6 6 . . . . 6 5 6 7 6 2 2 3 3 3 3 2 3 8 15 6 20 28 3 4 3 Corruption Purged 13 | . . . . . . . . . . . . . . . . . . . . . . . 6 7 . . . . . Corruption Blocked 53 | . . . . . . . . . . . . . . . 9 . . . . . . . . . 29 15 . . . Effects 469 | . 18 15 8 2 . . . . . 25 31 32 15 10 12 2 13 7 28 15 29 8 16 40 42 81 7 9 4 Message Errors 106 | . 3 3 2 1 . . . . . 7 7 8 4 2 2 . 5 1 9 3 9 3 3 10 7 12 1 3 1 Matter Fused 123 | . 9 6 3 . . . . . . 5 9 6 5 7 1 1 2 1 4 8 6 1 6 11 9 17 2 3 1 Heat Flow Errors 51 | . 2 1 1 . . . . . . 4 4 2 1 . . . 1 2 5 1 4 . 3 3 2 11 2 2 . Energy Discharges 61 | . 2 . 1 . . . . . . 4 6 3 3 . 3 . 1 1 . 1 4 1 3 7 7 13 . . 1 Parts Rejected 6 | . . . . . . . . . . 1 . 1 . . . . . . . . . 1 . . . 2 . . 1 Data Loss (minor) 55 | . 2 1 1 1 . . . . . 2 5 4 2 1 2 . 3 2 8 . 4 . . 4 4 7 2 . . Data Loss (major) 13 | . . 1 . . . . . . . . . 3 . . 1 1 1 . 1 . . 1 . 2 1 1 . . . Misfires 15 | . . 2 . . . . . . . 2 . 2 . . . . . . . 1 1 . . 1 2 4 . . . Alerts 13 | . . 1 . . . . . . . . . 3 . . . . . . 1 1 1 1 1 1 1 1 . 1 . Misdirections 4 | . . . . . . . . . . . . . . . . . . . . . . . . . . 4 . . . Weapon Failures 22 | . . . . . . . . . . . . . . . 3 . . . . . . . . 1 9 9 . . . Overload Shots 3 | . . . . . . . . . . . . . . . . . . . . . . 2 . . . . 1 . . Overflow Damage 1839 | . . . . . 1 71 60 . 2 77 91 1 . 48 309 . 56 . . 204 . . . 22 81 112 558 96 50 Projectiles 880 | . . . . . 1 22 . . . 12 65 1 . . 34 . . . . 35 . . . . 76 69 475 40 50 Explosions 486 | . . . . . . . . . 2 65 . . . 48 32 . 56 . . 74 . . . 22 5 43 83 56 . Melee 473 | . . . . . . 49 60 . . . 26 . . . 243 . . . . 95 . . . . . . . . . Knockbacks 93 | . . . . . 26 1 . . . 12 6 23 . 9 10 . . . . . . . . . . 6 . . . Impact 4 | . . . . . 1 1 . . . . 2 . . . . . . . . . . . . . . . . . . Kinetic 82 | . . . . . 20 . . . . 12 4 21 . 9 10 . . . . . . . . . . 6 . . . Secondary 7 | . . . . . 5 . . . . . . 2 . . . . . . . . . . . . . . . . . Self-Inflicted Damage 654 | . 1 . . . . . 28 . 120 18 . . . 41 . 2 121 . . 16 . . . 161 63 9 . 74 . Shots 22 | . . . . . . . 1 . 3 1 . . . 1 . 1 6 . . 1 . . . 2 4 . . 2 . Rammed 5 | . 1 . . . . . . . . . . . . . . . . . . . . . . 3 . 1 . . . Targets Rammed 6 | . 1 . . . . . . . . . . . . . . . . . . . . . . 3 1 1 . . . Kicked . | . . . . . . . . . . . . . . . . . . . . . . . . . . . . . . Crushed 1 | . . . . . . . . . . . . . . . . . . . . . . . . . 1 . . . . Highest Temperature 431 | . 431 222 224 91 300 81 4 . 114 302 258 236 265 . 421 78 89 227 263 336 198 162 197 197 195 183 338 339 384 Average Temperature 81 | . 113 81 114 41 83 26 4 . 41 78 73 71 135 . 88 43 57 114 101 112 100 76 84 65 69 39 116 52 141 Received Heat Transfer 4318 | . 294 24 . . 486 32 206 . 145 218 . 126 . 304 384 138 6 . 69 367 92 . . 280 45 867 66 77 92 Effects 6 | . . . 1 . 2 . . . . . . . . . 2 . . . . . . . . . . . 1 . . Shutdowns 1 | . . . . . . . . . . . . . . . 1 . . . . . . . . . . . . . . Energy Bleed 2 | . . . 1 . 1 . . . . . . . . . . . . . . . . . . . . . . . . Interference 1 | . . . . . 1 . . . . . . . . . . . . . . . . . . . . . . . . Matter Decay 1 | . . . . . . . . . . . . . . . 1 . . . . . . . . . . . . . . Damage (minor) 1 | . . . . . . . . . . . . . . . . . . . . . . . . . . . 1 . . Siege Activations 12 | . . . . . . . . . . . . . . . . . . . 1 . . . . 9 2 . . . . Total Turns 347 | . . . . . . . . . . . . . . . . . . . 17 . . . . 283 47 . . . . Longest Duration 88 | . . . . . . . . . . . . . . . . . . . 17 . . . . 88 25 . . . . Robots Corrupted 7 | . . . . . . . . . 1 . . . . . . . . . . . . . . 1 3 2 . . . Combat Hostiles 6 | . . . . . . . . . 1 . . . . . . . . . . . . . . 1 2 2 . . . Parts Fried 23 | . . . . . . . . . 4 . . 1 . . 1 . . . . . . . . 4 6 6 1 . . Impact Corruptions 8 | . . . . . . 3 2 . . . 3 . . . . . . . . . . . . . . . . . . Robots Melted 5 | . . . . . . . . . . 1 . . . . . . . . . . 2 . . . . . 2 . . Combat Hostiles 5 | . . . . . . . . . . 1 . . . . . . . . . . 2 . . . . . 2 . . Parts Melted 67 | . 2 . . . 2 1 . . 1 12 . . . . 7 . . . . 9 11 . . . . 5 15 2 . Heat Transferred 23938 | 100 1878 25 . 124 1776 1776 . . 200 2899 . 259 . . 3341 111 . 629 . 1274 2738 240 . 520 333 1105 3630 980 . Parts Sabotaged . | . . . . . . . . . . . . . . . . . . . . . . . . . . . . . . Parts Stolen 5 | . . . . . . . . . . . . 5 . . . . . . . . . . . . . . . . . Parts Stripped . | . . . . . . . . . . . . . . . . . . . . . . . . . . . . . . Power Chain Reactions 4 | . . . . . . . . . 1 . . . . . . . . . . . . . . 2 . 1 . . . Missiles Intercepted . | . . . . . . . . . . . . . . . . . . . . . . . . . . . . . . Alert | -11 -10 -10 -10 -9 -8 -7 -7 -7 -6 -6 -6 -6 -6 -5 -5 -5 -5 -5 -4 -4 -4 -4 -4 -4 -3 -3 -2 -2 -2 ------- Run | Scr Mat Min Exi Min Mat Fac Low Dat Pro Fac Low Low Zio Pro Fac Upp Upp Zhi Pro Fac Ext Cet Arc Hub Res Tes Res Qua Sec Peak Influence 1333 | 10 218 125 . 12 483 374 . . . 317 . . . . 998 . . . . 453 947 1174 968 1333 1090 1064 913 966 657 Initial 694 | . 6 17 . . 4 194 . . . . . . . . 44 . . . . . 76 518 469 310 694 612 550 513 551 Average 435 | 4 77 46 . 7 300 204 . . . 118 . . . . 699 . . . . 218 375 943 777 656 833 737 547 722 603 Maximum Alert Level 4 | . 1 . . . 2 1 . . . 1 . . . . 3 . . . . 2 3 4 3 4 3 3 3 3 2 Low Security (%) 31 | 100 99 100 . 100 25 40 . . . 87 . . . . 11 . . . . 42 31 . . . . . . . . Level 1 18 | . . . . . 35 59 . . . 12 . . . . 6 . . . . 51 35 . . 25 . . . . . Level 2 27 | . . . . . 38 . . . . . . . . . 22 . . . . 6 16 28 25 40 23 51 92 54 100 Level 3 20 | . . . . . . . . . . . . . . . 59 . . . . . 16 24 74 24 76 48 7 45 . Level 4 1 | . . . . . . . . . . . . . . . . . . . . . . 47 . 9 . . . . . Level 5 . | . . . . . . . . . . . . . . . . . . . . . . . . . . . . . . High Security . | . . . . . . . . . . . . . . . . . . . . . . . . . . . . . . Max Security . | . . . . . . . . . . . . . . . . . . . . . . . . . . . . . . Squads Dispatched 74 | . 2 . . . 4 2 . . . 7 . 1 . . 9 . . . . 2 4 1 . 12 10 9 5 4 2 Investigation 14 | . 2 . . . 1 . . . . 2 . . . . . . . . . . . 1 . 1 1 2 2 1 1 Extermination 17 | . . . . . . 1 . . . 2 . . . . 1 . . . . 2 . . . 3 3 2 2 1 . Reinforcement 29 | . . . . . 3 1 . . . . . . . . 5 . . . . . 2 . . 7 4 3 1 2 1 Assault 10 | . . . . . . . . . . . . 1 . . 2 . . . . . 2 . . 1 2 2 . . . Garrison 4 | . . . . . . . . . . 3 . . . . 1 . . . . . . . . . . . . . . Intercept . | . . . . . . . . . . . . . . . . . . . . . . . . . . . . . . Searches Triggered . | . . . . . . . . . . . . . . . . . . . . . . . . . . . . . . Data Miner Redirects 6 | . . . . . . . . . . 1 . . . . . . . . . . 1 . . 1 1 . 2 . . Construction Impeded 5 | . . . . . 1 . . . . . . . . . 1 . . . . . . . . 1 1 . 1 . . Haulers Reinforced 4 | . . . . . . . . . . . . . . . 1 . . . . . . . . 2 . 1 . . . Active Scanning Responses . | . . . . . . . . . . . . . . . . . . . . . . . . . . . . . . Cargo Convoy Interrupts . | . . . . . . . . . . . . . . . . . . . . . . . . . . . . . . Stealth | -11 -10 -10 -10 -9 -8 -7 -7 -7 -6 -6 -6 -6 -6 -5 -5 -5 -5 -5 -4 -4 -4 -4 -4 -4 -3 -3 -2 -2 -2 --------- Run | Scr Mat Min Exi Min Mat Fac Low Dat Pro Fac Low Low Zio Pro Fac Upp Upp Zhi Pro Fac Ext Cet Arc Hub Res Tes Res Qua Sec Distress Signals 28 | . 1 . . . 4 1 . . . 2 . . . 3 1 . . . . 1 1 2 1 3 2 1 2 1 2 Communications Jammed 27 | . . . . . . . . . . . . . . . . . . . . . . . . . 5 22 . . . Distress Signals 27 | . . . . . . . . . . . . . . . . . . . . . . . . . 5 22 . . . Times Spotted 608 | . 17 2 . . 44 20 10 . 15 26 9 25 1 24 51 10 8 . 5 23 30 15 26 45 48 57 40 35 22 Peak Tracking Total 16 | . 4 2 . . 7 4 6 . 5 4 4 14 1 5 7 10 4 . 3 5 7 5 16 6 6 9 13 14 11 Tactical Retreats 38 | . . . . . 2 2 . . 1 1 . 6 . 1 2 2 1 . 1 . . . . . 5 5 4 5 . Traps | -11 -10 -10 -10 -9 -8 -7 -7 -7 -6 -6 -6 -6 -6 -5 -5 -5 -5 -5 -4 -4 -4 -4 -4 -4 -3 -3 -2 -2 -2 ------- Run | Scr Mat Min Exi Min Mat Fac Low Dat Pro Fac Low Low Zio Pro Fac Upp Upp Zhi Pro Fac Ext Cet Arc Hub Res Tes Res Qua Sec Traps Triggered 17 | . 4 . . . . . . . . . . . . . . . . . . . 1 . . . . 5 4 3 . Indirectly . | . . . . . . . . . . . . . . . . . . . . . . . . . . . . . . Trap Hack Attempts 77 | . . . . . 77 . . . . . . . . . . . . . . . . . . . . . . . . Triggered . | . . . . . . . . . . . . . . . . . . . . . . . . . . . . . . Disarmed 1 | . . . . . 1 . . . . . . . . . . . . . . . . . . . . . . . . Reprogrammed 5 | . . . . . 5 . . . . . . . . . . . . . . . . . . . . . . . . Reused 8 | . . . . . 5 . . . . . . . . . 3 . . . . . . . . . . . . . . Traps Extracted 5 | . . . . . 5 . . . . . . . . . . . . . . . . . . . . . . . . Installed 9 | . . . . . 5 . . . . . . . . . 3 . . . . . . . . 1 . . . . . Triggered 14 | . . . . . 5 . . . . . 1 . . 2 4 . 1 . 1 . . . . . . . . . . Most Traps Carried 8 | . . 5 5 5 5 5 5 5 6 6 7 5 5 5 3 . . . . 4 4 4 4 8 7 7 7 . . Exploded 1 | . . . . . 1 . . . . . . . . . . . . . . . . . . . . . . . . Machines | -11 -10 -10 -10 -9 -8 -7 -7 -7 -6 -6 -6 -6 -6 -5 -5 -5 -5 -5 -4 -4 -4 -4 -4 -4 -3 -3 -2 -2 -2 ---------- Run | Scr Mat Min Exi Min Mat Fac Low Dat Pro Fac Low Low Zio Pro Fac Upp Upp Zhi Pro Fac Ext Cet Arc Hub Res Tes Res Qua Sec Machines Disabled 61 | . . . . . 3 . 1 . . 4 . . . 2 . . . . . 7 2 2 1 14 3 8 3 10 1 Max in Single Turn 4 | . . . . . 2 . 1 . . 3 . . . 1 . . . . . 1 . 1 . 4 1 1 1 2 1 Garrison Access 3 | . . . . . . . . . . 1 . . . . 1 . . . . . . . . . . 1 . . . Network Hub 1 | . . . . . . . . . . . . . . . . . . . . . . . . 1 . . . . . Machines Sabotaged . | . . . . . . . . . . . . . . . . . . . . . . . . . . . . . . Garrisons Compromised . | . . . . . . . . . . . . . . . . . . . . . . . . . . . . . . Overloaded Fab Kills . | . . . . . . . . . . . . . . . . . . . . . . . . . . . . . . Hacking | -11 -10 -10 -10 -9 -8 -7 -7 -7 -6 -6 -6 -6 -6 -5 -5 -5 -5 -5 -4 -4 -4 -4 -4 -4 -3 -3 -2 -2 -2 --------- Run | Scr Mat Min Exi Min Mat Fac Low Dat Pro Fac Low Low Zio Pro Fac Upp Upp Zhi Pro Fac Ext Cet Arc Hub Res Tes Res Qua Sec Machines Accessed 53 | . 6 1 2 . 9 3 2 3 . 7 1 2 . 1 2 . 1 4 . 1 . 1 1 1 1 2 2 . . Terminals 25 | . 6 . . . 9 2 1 . . 5 . . . 1 . . . . . . . 1 . . . . . . . Fabricators 4 | . . . . . . . . . . 1 . . . . . . . . . . . . . . 1 1 1 . . Repair Stations 3 | . . . . . . 1 . . . . . . . . . . . . . 1 . . . . . . 1 . . Recycling Units . | . . . . . . . . . . . . . . . . . . . . . . . . . . . . . . Scanalyzers . | . . . . . . . . . . . . . . . . . . . . . . . . . . . . . . Garrison Access 5 | . . . . . . . . . . 1 . . . . 2 . . . . . . . . 1 . 1 . . . Total Hacks 195 | . 23 1 2 . 30 8 2 26 . 28 1 6 . 1 3 . 1 17 . 2 . 4 25 1 3 6 5 . . Successful 135 | . 10 1 2 . 16 3 2 26 . 19 1 6 . 1 1 . 1 17 . . . . 25 . . 3 1 . . Failed 59 | . 13 . . . 14 5 . . . 8 . . . . 2 . . . . 2 . 4 . 1 3 3 4 . . Catastrophic 14 | . . . . . 3 3 . . . 1 . . . . 1 . . . . . . 2 . 1 1 . 2 . . Database Lockouts 1 | . . . . . . . . . . 1 . . . . . . . . . . . . . . . . . . . Manual 177 | . 14 . 1 . 17 5 . . . 14 . . 1 . 30 . . . . 12 19 1 . 12 15 18 4 12 2 Terminals 88 | . 23 . . . 30 5 1 . . 24 . . . 1 . . . . . . . 4 . . . . . . . Fabricators 11 | . . . . . . . . . . 3 . . . . . . . . . . . . . . 3 3 2 . . Repair Stations 8 | . . . . . . 3 . . . . . . . . . . . . . 2 . . . . . . 3 . . Recycling Units . | . . . . . . . . . . . . . . . . . . . . . . . . . . . . . . Scanalyzers . | . . . . . . . . . . . . . . . . . . . . . . . . . . . . . . Garrison Access 8 | . . . . . . . . . . 1 . . . . 3 . . . . . . . . 1 . 3 . . . Terminal Hacks 116 | . 9 1 2 . 14 . 2 26 . 11 1 6 . 1 . . 1 17 . . . . 25 . . . . . . Record 44 | . . . 1 . . . 1 6 . . . 5 . . . . 1 5 . . . . 25 . . . . . . Part Schematic 19 | . 2 . . . . . . 11 . 2 . . . . . . . 4 . . . . . . . . . . . Robot Schematic 6 | . . . . . . . . 6 . . . . . . . . . . . . . . . . . . . . . Robot Analysis 8 | . 2 . . . 1 . . . . 1 . . . . . . . 4 . . . . . . . . . . . Prototype ID Bank 15 | . 2 . . . 5 . . 3 . 1 . . . . . . . 4 . . . . . . . . . . . Open Door 5 | . . 1 . . . . 1 . . . 1 1 . 1 . . . . . . . . . . . . . . . Branch Access Points 2 | . . . . . 1 . . . . 1 . . . . . . . . . . . . . . . . . . . Terminal Index 2 | . 1 . . . 1 . . . . . . . . . . . . . . . . . . . . . . . . Fabricator Index 1 | . . . . . . . . . . 1 . . . . . . . . . . . . . . . . . . . Repair Station Index 1 | . . . . . . . . . . 1 . . . . . . . . . . . . . . . . . . . Locate Traps 9 | . 2 . . . 6 . . . . 1 . . . . . . . . . . . . . . . . . . . Hauler Manifests 2 | . . . . . . . . . . 2 . . . . . . . . . . . . . . . . . . . Zone Layout 1 | . . . . . . . . . . 1 . . . . . . . . . . . . . . . . . . . EX-Prototype ID Bank 1 | . . . 1 . . . . . . . . . . . . . . . . . . . . . . . . . . Fabricator Hacks 4 | . . . . . . . . . . 2 . . . . . . . . . . . . . . . 2 . . . Load Schematic 2 | . . . . . . . . . . 1 . . . . . . . . . . . . . . . 1 . . . Build 2 | . . . . . . . . . . 1 . . . . . . . . . . . . . . . 1 . . . Repair Station Hacks 2 | . . . . . . 1 . . . . . . . . . . . . . . . . . . . . 1 . . Scan Component 2 | . . . . . . 1 . . . . . . . . . . . . . . . . . . . . 1 . . Recycling Unit Hacks . | . . . . . . . . . . . . . . . . . . . . . . . . . . . . . . Scanalyzer . | . . . . . . . . . . . . . . . . . . . . . . . . . . . . . . Garrison Access Hacks 3 | . . . . . . . . . . 1 . . . . 1 . . . . . . . . . . 1 . . . Seal Access 3 | . . . . . . . . . . 1 . . . . 1 . . . . . . . . . . 1 . . . Unauthorized Hacks 10 | . 1 . . . 2 2 . . . 5 . . . . . . . . . . . . . . . . . . . Terminals 10 | . 1 . . . 2 2 . . . 5 . . . . . . . . . . . . . . . . . . . Assimilate 1 | . . . . . . . . . . 1 . . . . . . . . . . . . . . . . . . . Botnet 6 | . . . . . 1 2 . . . 3 . . . . . . . . . . . . . . . . . . . Operators 3 | . 1 . . . 1 . . . . 1 . . . . . . . . . . . . . . . . . . . Fabricators . | . . . . . . . . . . . . . . . . . . . . . . . . . . . . . . Repair Stations . | . . . . . . . . . . . . . . . . . . . . . . . . . . . . . . Recycling Units . | . . . . . . . . . . . . . . . . . . . . . . . . . . . . . . Scanalyzers . | . . . . . . . . . . . . . . . . . . . . . . . . . . . . . . Garrison Access . | . . . . . . . . . . . . . . . . . . . . . . . . . . . . . . Data Cores Recovered . | . . . . . . . . . . . . . . . . . . . . . . . . . . . . . . Used . | . . . . . . . . . . . . . . . . . . . . . . . . . . . . . . Hacking Detections 31 | . 5 . . . 9 3 1 . . 5 . . . . 1 . . . . 1 . 1 . 1 1 1 2 . . Full Trace Events 8 | . 1 . . . 2 . . . . 2 . . . . . . . . . . . 1 . . 1 1 . . . Feedback Events 1 | . 1 . . . . . . . . . . . . . . . . . . . . . . . . . . . . Corruption 1 | . 1 . . . . . . . . . . . . . . . . . . . . . . . . . . . . Feedback Blocked . | . . . . . . . . . . . . . . . . . . . . . . . . . . . . . . Robot Schematics Acquired 6 | . . . . . . . . 6 . . . . . . . . . . . . . . . . . . . . . Robots Built . | . . . . . . . . . . . . . . . . . . . . . . . . . . . . . . Authchips . | . . . . . . . . . . . . . . . . . . . . . . . . . . . . . . Time . | . . . . . . . . . . . . . . . . . . . . . . . . . . . . . . Total Robot Build Rating . | . . . . . . . . . . . . . . . . . . . . . . . . . . . . . . Part Schematics Acquired 56 | . 2 . . . . . . 11 . 2 . . . . . . . 4 . . 8 . . . . 18 . 10 1 Parts Built 2 | . . . . . . . . . . 1 . . . . . . . . . . . . . . . 1 . . . Authchips . | . . . . . . . . . . . . . . . . . . . . . . . . . . . . . . Time 168 | . . . . . . . . . . 84 . . . . . . . . . . . . . . . 84 . . . Total Part Build Rating 12 | . . . . . . . . . . 6 . . . . . . . . . . . . . . . 6 . . . Parts Repaired . | . . . . . . . . . . . . . . . . . . . . . . . . . . . . . . Time . | . . . . . . . . . . . . . . . . . . . . . . . . . . . . . . Parts Recycled . | . . . . . . . . . . . . . . . . . . . . . . . . . . . . . . Recycled Matter . | . . . . . . . . . . . . . . . . . . . . . . . . . . . . . . Retrieved Matter . | . . . . . . . . . . . . . . . . . . . . . . . . . . . . . . Retrieved Components . | . . . . . . . . . . . . . . . . . . . . . . . . . . . . . . Parts Scanalyzed . | . . . . . . . . . . . . . . . . . . . . . . . . . . . . . . Part Schematics Acquired . | . . . . . . . . . . . . . . . . . . . . . . . . . . . . . . Parts Damaged . | . . . . . . . . . . . . . . . . . . . . . . . . . . . . . . Bothacking | -11 -10 -10 -10 -9 -8 -7 -7 -7 -6 -6 -6 -6 -6 -5 -5 -5 -5 -5 -4 -4 -4 -4 -4 -4 -3 -3 -2 -2 -2 ------------ Run | Scr Mat Min Exi Min Mat Fac Low Dat Pro Fac Low Low Zio Pro Fac Upp Upp Zhi Pro Fac Ext Cet Arc Hub Res Tes Res Qua Sec Used RIF Installer . | . . . . . . . . . . . . . . . . . . . . . . . . . . . . . . Robots Hacked 1 | . . . . . . . . . . . . . . . . . . . . 1 . . . . . . . . . Non-combat 1 | . . . . . . . . . . . . . . . . . . . . 1 . . . . . . . . . Combat . | . . . . . . . . . . . . . . . . . . . . . . . . . . . . . . Robot Hacks Applied 1 | . . . . . . . . . . . . . . . . . . . . 1 . . . . . . . . . find_chute 1 | . . . . . . . . . . . . . . . . . . . . 1 . . . . . . . . . Relay Couplers Released . | . . . . . . . . . . . . . . . . . . . . . . . . . . . . . . Fabnet Peak Effective % . | . . . . . . . . . . . . . . . . . . . . . . . . . . . . . . Robots Rewired 30 | . . . . . . . 4 . . . . . . 11 . . . . . 1 13 . . . . 1 . . . Allies Hacked 2 | . . . . . . . . . . . . . . . . . . . . 1 . . . . . . 1 . . Hacks Repelled . | . . . . . . . . . . . . . . . . . . . . . . . . . . . . . . Allies | -11 -10 -10 -10 -9 -8 -7 -7 -7 -6 -6 -6 -6 -6 -5 -5 -5 -5 -5 -4 -4 -4 -4 -4 -4 -3 -3 -2 -2 -2 -------- Run | Scr Mat Min Exi Min Mat Fac Low Dat Pro Fac Low Low Zio Pro Fac Upp Upp Zhi Pro Fac Ext Cet Arc Hub Res Tes Res Qua Sec Total Allies 89 | . . 3 . 2 . . 4 . 1 1 . . 4 11 5 . . . . 4 38 4 . 4 6 1 1 . . Largest Group 29 | . . 3 3 5 5 . 4 3 4 1 . . 4 6 8 1 . . . 2 29 20 15 3 5 1 1 . . Highest-Rated Group 1517 | . . 40 40 83 83 . 124 93 189 10 . . 154 256 376 28 . . . 58 1517 1332 1079 82 449 156 27 . . Highest-Rated Ally 159 | . . 16 16 31 31 . 31 31 96 10 . . 40 68 68 28 . . . 42 159 159 159 32 103 156 27 . . Zionite Dispatches 21 | . . . . . . . . . . . . . . . 4 . . . . 3 5 . . 4 4 . 1 . . Heavy 2 | . . . . . . . . . . . . . . . . . . . . . 1 . . . 1 . . . . Light 1 | . . . . . . . . . . . . . . . . . . . . . 1 . . . . . . . . Recon 2 | . . . . . . . . . . . . . . . 1 . . . . . . . . . 1 . . . . Fire 2 | . . . . . . . . . . . . . . . . . . . . . 2 . . . . . . . . Hacker 2 | . . . . . . . . . . . . . . . 1 . . . . . . . . . 1 . . . . Thermal Resupply 1 | . . . . . . . . . . . . . . . . . . . . 1 . . . . . . . . . Kinetic Resupply 3 | . . . . . . . . . . . . . . . 1 . . . . . 1 . . 1 . . . . . Trap Resupply 2 | . . . . . . . . . . . . . . . . . . . . 1 . . . 1 . . . . . Resource Resupply 1 | . . . . . . . . . . . . . . . . . . . . . . . . 1 . . . . . Defense Resupply 1 | . . . . . . . . . . . . . . . . . . . . . . . . . 1 . . . . Heavy Resupply 1 | . . . . . . . . . . . . . . . . . . . . . . . . 1 . . . . . Infowar Resupply 1 | . . . . . . . . . . . . . . . . . . . . 1 . . . . . . . . . Hacking Resupply 1 | . . . . . . . . . . . . . . . 1 . . . . . . . . . . . . . . Zionite Resupply 1 | . . . . . . . . . . . . . . . . . . . . . . . . . . . 1 . . Total Orders 26 | . . 2 . . . . . . . 4 8 1 . . . . . . . 3 . . . 4 3 . 1 . . STAY 3 | . . 1 . . . . . . . . . . . . . . . . . 1 . . . 1 . . . . . FOLLOW 3 | . . 1 . . . . . . . . 2 . . . . . . . . . . . . . . . . . . DROP 7 | . . . . . . . . . . . . . . . . . . . . 2 . . . 3 1 . 1 . . EXPLORE 2 | . . . . . . . . . . . . . . . . . . . . . . . . . 2 . . . . RETURN 11 | . . . . . . . . . . 4 6 1 . . . . . . . . . . . . . . . . . Ally Attacks 653 | . . . . . 29 . 16 . 57 43 37 4 5 56 64 . . . . 1 143 87 63 . 42 6 . . . Total Damage 21132 | . . . . . 314 . 278 . 806 643 912 69 142 1069 3209 . . . . 217 4865 3273 2616 . 2195 524 . . . Kills 133 | . . . . . 3 . 2 . 5 6 6 . 1 11 20 . . . . 2 28 19 16 . 11 3 . . . Allies Corrupted 1 | . . . . . . . . . . . . . . . . . . . . . . . . 1 . . . . . Allies Melted 2 | . . . . . . . . . 1 . . . . . . . . . . . . . 1 . . . . . . Intel | -11 -10 -10 -10 -9 -8 -7 -7 -7 -6 -6 -6 -6 -6 -5 -5 -5 -5 -5 -4 -4 -4 -4 -4 -4 -3 -3 -2 -2 -2 ------- Run | Scr Mat Min Exi Min Mat Fac Low Dat Pro Fac Low Low Zio Pro Fac Upp Upp Zhi Pro Fac Ext Cet Arc Hub Res Tes Res Qua Sec Robot Analysis Total 8 | . 2 . . . 1 . . . . 1 . . . . . . . 4 . . . . . . . . . . . Derelict Logs Recovered 11 | . . 1 . 1 . . 2 . . . 1 1 1 1 . . 2 . 1 . . . . . . . . . . Drone Launches 14 | . . . . . . . . . . 6 4 2 . . . . . . . . . . . . 2 . . . . Drone Recoveries 12 | . . . . . . . . . . 4 4 2 . . . . . . . . . . . . 2 . . . . Decoded 0b10 Intel 18 | . . . . . . . . . . 18 . . . . . . . . . . . . . . . . . . . Traps 1 | . . . . . . . . . . 1 . . . . . . . . . . . . . . . . . . . Emergency Access 2 | . . . . . . . . . . 2 . . . . . . . . . . . . . . . . . . . Items 14 | . . . . . . . . . . 14 . . . . . . . . . . . . . . . . . . . Patrols 1 | . . . . . . . . . . 1 . . . . . . . . . . . . . . . . . . . Zionite Intel Received 15 | . . . . . . . . . . . . . . . 3 . . . . 1 1 . . 1 1 5 . 3 . Main Access 1 | . . . . . . . . . . . . . . . . . . . . . . . . . . 1 . . . Branch Access 1 | . . . . . . . . . . . . . . . 1 . . . . . . . . . . . . . . Emergency Access 1 | . . . . . . . . . . . . . . . . . . . . . . . . . . 1 . . . Prototype Stockpiles 2 | . . . . . . . . . . . . . . . 1 . . . . . . . . . . . . 1 . Prototype Schematics 4 | . . . . . . . . . . . . . . . . . . . . . 1 . . . . 2 . 1 . Unaware Analyses 2 | . . . . . . . . . . . . . . . . . . . . . . . . . . 1 . 1 . Trap Installations 2 | . . . . . . . . . . . . . . . 1 . . . . 1 . . . . . . . . . Active Garrisons 1 | . . . . . . . . . . . . . . . . . . . . . . . . . 1 . . . . Depthwide Sectors/-1 1 | . . . . . . . . . . . . . . . . . . . . . . . . 1 . . . . . Exploration | -11 -10 -10 -10 -9 -8 -7 -7 -7 -6 -6 -6 -6 -6 -5 -5 -5 -5 -5 -4 -4 -4 -4 -4 -4 -3 -3 -2 -2 -2 ------------- Run | Scr Mat Min Exi Min Mat Fac Low Dat Pro Fac Low Low Zio Pro Fac Upp Upp Zhi Pro Fac Ext Cet Arc Hub Res Tes Res Qua Sec Turns Passed 30285 | 96 1108 734 516 114 2439 1044 916 136 1192 1561 1222 1019 3900 1537 1272 221 840 434 1077 965 1500 390 354 1505 1137 1358 970 513 215 Spaces Moved 16946 | 71 764 603 451 71 1064 685 700 119 626 824 897 509 1577 493 734 187 397 179 546 443 829 183 199 558 421 804 907 912 193 Core 5 | 4 . . . . . . . . . . . . . . . . . . . . . . . . . . . . 1 Treads 1594 | . 19 . . . 2 . . . . . . . . 268 58 . 3 2 . . 88 183 199 558 214 . . . . Legs 1946 | . . . . . . . . . . . . . . 143 . . . 73 546 443 741 . . . . . . . . Wheels 11810 | 67 745 603 451 71 1062 685 700 119 626 824 897 509 1577 82 676 187 394 104 . . . . . . 206 804 421 . . Hover 1590 | . . . . . . . . . . . . . . . . . . . . . . . . . . . 486 912 192 Flight 1 | . . . . . . . . . . . . . . . . . . . . . . . . . 1 . . . . Fastest Speed 44 | 50 80 105 105 105 145 115 115 115 115 120 120 116 245 243 99 99 116 190 190 120 120 160 160 160 119 102 44 44 55 Average Speed 142 | 81 106 105 105 114 145 126 115 115 174 133 121 173 245 255 125 112 198 199 190 166 129 160 160 160 149 114 84 46 83 Slowest Speed 750 | 90 240 105 105 130 325 130 115 115 205 205 125 245 260 345 243 116 245 245 190 190 240 160 160 165 594 130 170 114 750 Overloaded Moves . | . . . . . . . . . . . . . . . . . . . . . . . . . . . . . . Propulsion Burnouts . | . . . . . . . . . . . . . . . . . . . . . . . . . . . . . . Robots Hopped . | . . . . . . . . . . . . . . . . . . . . . . . . . . . . . . Cave-ins Triggered . | . . . . . . . . . . . . . . . . . . . . . . . . . . . . . . Teleports 3 | . . . . . . . . . . . . . . . . . . . . . . . . . . . . 2 1 Exploration Rate (%) 57 | 4 98 91 70 13 72 21 89 70 82 20 86 71 89 55 20 45 58 61 66 12 87 70 98 52 24 78 30 80 17 Regions Visited 29 Branch Regions 21 Pre-discovered Areas 12 | . . 1 1 . . . . 1 . . . 1 . . . . 1 3 . . . . . 4 . . . . . Known Exits Taken 11 | . . . . . . 1 . . . 1 1 . . . 1 . . . . 1 . . 1 1 1 1 1 1 . Unknown Exits Taken 18 | 1 1 1 1 1 1 . 1 1 1 . . 1 1 1 . 1 1 1 1 . 1 1 . . . . . . . Scrap Searched 25 | . . 2 . 1 . . 3 . 4 . 2 2 5 2 . 1 2 . 1 . . . . . . . . . . Spaces Dug 88 | . 1 . . . 10 1 . . . . . . . 1 13 . . . . 8 . . 1 6 11 8 16 12 . Terrain Destroyed 918 | . 1 29 . . 15 1 52 . 65 36 2 1 . 44 52 13 90 . 22 37 1 . 1 242 42 28 57 59 28 Melee 15 | . . . . . 1 1 . . . . . . . . 8 . . . . 2 . . 1 2 . . . . . Projectile 212 | . 1 . . . 14 . . . . 4 2 1 . . 9 . . . 1 2 1 . . 76 28 22 15 8 28 AOE 684 | . . 29 . . . . 52 . 65 32 . . . 44 35 13 90 . 21 33 . . . 162 9 6 42 51 . Terrain Rammed . | . . . . . . . . . . . . . . . . . . . . . . . . . . . . . . Walls Destroyed . | . . . . . . . . . . . . . . . . . . . . . . . . . . . . . . Machines Disabled . | . . . . . . . . . . . . . . . . . . . . . . . . . . . . . . Actions | -11 -10 -10 -10 -9 -8 -7 -7 -7 -6 -6 -6 -6 -6 -5 -5 -5 -5 -5 -4 -4 -4 -4 -4 -4 -3 -3 -2 -2 -2 --------- Run | Scr Mat Min Exi Min Mat Fac Low Dat Pro Fac Low Low Zio Pro Fac Upp Upp Zhi Pro Fac Ext Cet Arc Hub Res Tes Res Qua Sec Total 21115 | 90 925 701 495 97 1678 781 780 118 692 1110 1009 596 1612 692 924 193 428 224 576 595 1202 272 231 958 734 1090 1076 993 243 Wait 1492 | . 58 68 35 15 244 14 36 . 17 118 39 16 . 92 15 1 1 1 21 22 73 57 21 208 129 109 23 31 28 Move 16917 | 70 763 602 450 70 1063 684 699 118 625 823 896 508 1576 492 733 186 396 178 545 442 828 182 198 557 420 803 906 911 193 Hop . | . . . . . . . . . . . . . . . . . . . . . . . . . . . . . . Pick Up 221 | 5 14 8 5 3 25 10 4 . 8 11 18 7 12 9 5 1 4 3 1 10 7 5 . 21 5 8 6 5 1 Fast Attach 232 | 7 1 . . 1 9 . 1 . . 15 . 4 8 9 15 . 2 9 . 15 16 7 5 13 29 28 26 9 3 Attach 138 | . 2 1 . 2 9 5 2 . 5 9 7 10 5 1 6 1 3 5 . 9 5 . 1 9 11 8 13 5 4 Detach 55 | . . . 2 . 2 . . . . 1 3 1 3 . 5 . 1 3 . 3 1 . . 4 7 8 5 6 . Swap 271 | 1 18 3 1 2 77 15 14 . 8 16 6 . 1 9 24 . 1 . 1 13 6 4 2 19 12 6 8 3 1 Drop 292 | . 1 12 2 1 27 12 1 . 2 18 17 4 7 14 9 1 1 8 . 19 27 10 3 27 10 19 28 9 3 Fire 1106 | 7 67 7 . 3 137 38 19 . 27 99 19 46 . 64 90 3 19 17 8 37 25 5 . 94 110 93 48 14 10 Melee 71 | . . . . . 3 3 4 . . . 4 . . 2 19 . . . . 25 . 2 1 2 . 6 . . . Ram 2 | . 1 . . . . . . . . . . . . . . . . . . . . . . . . 1 . . . Kick . | . . . . . . . . . . . . . . . . . . . . . . . . . . . . . . Crush 4 | . . . . . . . . . . . . . . . . . . . . . . . . 3 1 . . . . Escape Stasis 19 | . . . . . . . . . . . . . . . . . . . . . 5 . . . . 1 13 . . Rewire 209 | . . . . . . . . . . . . . . . . . . . . . 209 . . . . . . . . Trap 86 | . . . . . 82 . . . . . . . . . 3 . . . . . . . . 1 . . . . . Miscellaneous . | . . . . . . . . . . . . . . . . . . . . . . . . . . . . . . Route ------- -11/Scrapyard -10/Materials (discovered 4 exits: [*Mat x3] / *Min) -10/Mines (discovered 2 exits: [*Mat] / *Exi) -10/Exiles -9/Mines -8/Materials (discovered 3 exits: *Fac x3) -7/Factory (discovered 3 exits: *Fac x2 / *Low) -7/Lower Caves (discovered 2 exits: [*Low] / *Dat) -7/Data Miner -6/Proximity Caves -6/Factory (discovered 2 exits: *Low x2) -6/Lower Caves -6/Lower Caves (discovered 2 exits: *Fac / *Zio) -6/Zion -5/Proximity Caves -5/Factory (discovered 2 exits: *Upp x2) -5/Upper Caves -5/Upper Caves -5/Zhirov -4/Proximity Caves -4/Factory (discovered 2 exits: Res / *Ext) -4/Extension (discovered 2 exits: *Res / *Cet) -4/Cetus (discovered 2 exits: *Res / *Arc) -4/Archives (discovered 3 exits: *Res / *Hub x2) -4/Hub_04(d) (discovered 2 exits: *Res x2) -3/Research -3/Testing -2/Research -2/Quarantine -2/Section 7 History --------- Turn | Location | Event 12 | -11/Scrapyard | Discovered new exit (range 15) 97 | -11/Scrapyard | Entered Materials 326 | -10/Materials | Build established: Mutant 388 | -10/Materials | Discovered new exit (range 8) 666 | -10/Materials | Core integrity fell below 50% 722 | -10/Materials | Discovered new exit (range 8) 773 | -10/Materials | Discovered new exit (range 14) 1053 | -10/Materials | Discovered new exit (range 16) 1205 | -10/Materials | Entered Mines 1214 | -10/Mines | Met a Derelict bent on vengeance 1224 | -10/Mines | Learned 2 Materials zone layouts 1435 | -10/Mines | Assisted by bots powering up and referring to "LRC-V3" 1477 | -10/Mines | Found a hidden stash of uninstalled traps 1514 | -10/Mines | Learned location of Storage (-7) 1562 | -10/Mines | Met a Derelict who couldn't figure out how to use a Trap Extractor 1808 | -10/Mines | Discovered new exit (range 14) 1838 | -10/Mines | Deemed a non-threat by the Exiles lab entrance 1838 | -10/Mines | Discovered new exit (range 5) 1939 | -10/Mines | Entered Exiles 1939 | -10/Exiles | Accompanied by 3 allies 1966 | -10/Exiles | Met 8R-AWN 1983 | -10/Exiles | Met EX-HEX 2056 | -10/Exiles | Met EX-DEC 2075 | -10/Exiles | Learned location of Zion (-6) 2150 | -10/Exiles | Met EX-BIN 2167 | -10/Exiles | Aligned with FarCom system 2168 | -10/Exiles | Given EX-Vault access code 2192 | -10/Exiles | Opened EX-Vault 2203 | -10/Exiles | Found 0b10 Alert Chip 2205 | -10/Exiles | Found Gui. Plasma Cannon 2242 | -10/Exiles | Warned to stay clear of 0b10 Research branches 2423 | -10/Exiles | Discovered new exit (range 10) 2455 | -10/Exiles | Stole two prototypes: 0b10 Alert Chip, Gui. Plasma Cannon 2455 | -10/Exiles | Entered Mines 2455 | -9/Mines | Accompanied by 3 allies 2480 | -9/Mines | Discovered new exit (range 7) 2482 | -9/Mines | Joined a pair of Derelicts in attacking an 0b10 outpost 2569 | -9/Mines | Entered Materials 2569 | -8/Materials | Accompanied by 5 allies 2569 | -8/Materials | Evolved 4 slots: Utility x4 2574 | -8/Materials | Led the pair of lost Derelicts to an unsafe place 2618 | -8/Materials | Build established: Trapper-Mutant 3091 | -8/Materials | Discovered new exit (range 6) 3240 | -8/Materials | Build established: Mutant 3869 | -8/Materials | Discovered new exit (range 7) 4258 | -8/Materials | Discovered new exit (range 14) 5008 | -8/Materials | Entered Factory 5008 | -7/Factory | Evolved 2 slots: Propulsion x2 5009 | -7/Factory | Identified exit to Lower Caves 5010 | -7/Factory | FarCom data flow suspended 5324 | -7/Factory | Build established: Hacker-Mutant 5627 | -7/Factory | Discovered new exit (range 6) 5774 | -7/Factory | Discovered new exit (range 16) 6052 | -7/Factory | Entered Lower Caves 6441 | -7/Lower Caves | Encountered a Warlord checkpoint 6483 | -7/Lower Caves | Learned Factory non-interactive machine intel 6562 | -7/Lower Caves | Build established: Mutant 6571 | -7/Lower Caves | Discovered new exit (range 5) 6630 | -7/Lower Caves | Attacked by a delusional Derelict stockpiling Unaware 6692 | -7/Lower Caves | Learned Factory terminal intel 6807 | -7/Lower Caves | Attracted the attention of an 0b10 checkpoint 6849 | -7/Lower Caves | A Derelict revealed a hidden shortcut to meet someone special 6968 | -7/Lower Caves | Entered Data Miner 6968 | -7/Data Miner | Accompanied by 3 allies 6968 | -7/Data Miner | Discovered new exit (range 6) 6990 | -7/Data Miner | Met Data Miner 7013 | -7/Data Miner | Learned location of Section 7 (-2) 7013 | -7/Data Miner | Acquired the access code to Warlord's prototype stash 7034 | -7/Data Miner | Received God Mode back door access code from Data Miner 7104 | -7/Data Miner | Entered Proximity Caves 7104 | -6/Proximity Caves | Accompanied by 3 allies 7156 | -6/Proximity Caves | Escorted by Enhanced Grunt 7238 | -6/Proximity Caves | Received a Behemoth hack from an annoying Tinkerer 7272 | -6/Proximity Caves | Spotted B-75 Beast 7372 | -6/Proximity Caves | Lost 3 parts (1n1u1w) 8065 | -6/Proximity Caves | Discovered new exit (range 13) 8296 | -6/Proximity Caves | Entered Factory 8296 | -6/Factory | Evolved 2 slots: Power x1, Utility x1 8297 | -6/Factory | Loaded intel: 248 non-interactive machine locations 8298 | -6/Factory | Loaded intel: 25 terminal locations 8510 | -6/Factory | Central database locked down 8780 | -6/Factory | Identified exit to Lower Caves 8794 | -6/Factory | Build established: Scavenger-Mutant 9005 | -6/Factory | Incoming investigation squad redirected 9025 | -6/Factory | Garrison activated, responded to threat 9070 | -6/Factory | Fabricated Combat Drone Bay (x1) 9529 | -6/Factory | Lost 3 parts (1p1n1w) 9661 | -6/Factory | Garrison activated, responded to threat 9816 | -6/Factory | Lost 10 parts (1p3n2u4w) 9857 | -6/Factory | Entered Lower Caves 9857 | -6/Lower Caves | Accompanied by 2 allies 9857 | -6/Lower Caves | Spotted I2-FD5(f) 9858 | -6/Lower Caves | Encountered a Master Thief 9861 | -6/Lower Caves | Allies destroyed I2-FD5(f) 10001 | -6/Lower Caves | Ambushed by wild Derelicts 10234 | -6/Lower Caves | Encountered a Warlord checkpoint 10576 | -6/Lower Caves | Discovered new exit (range 6) 10582 | -6/Lower Caves | Identified exit to Lower Caves 10620 | -6/Lower Caves | Learned Factory terminal intel 11079 | -6/Lower Caves | Entered another Lower Caves area 11079 | -6/Lower Caves | Accompanied by 2 allies 11108 | -6/Lower Caves | Discovered new exit (range 16) 11160 | -6/Lower Caves | Attracted the attention of an 0b10 outpost 11214 | -6/Lower Caves | Attracted the attention of an 0b10 checkpoint 11256 | -6/Lower Caves | Encountered a Warlord checkpoint 11311 | -6/Lower Caves | Spotted 4S-SQB(f) 11313 | -6/Lower Caves | Encountered a Master Thief 11313 | -6/Lower Caves | Spotted P4-UD5(f) 11314 | -6/Lower Caves | Encountered a Master Thief 11314 | -6/Lower Caves | Master Tearclaws stolen by Master Thief 11314 | -6/Lower Caves | Spotted HX-Z8W(f) 11315 | -6/Lower Caves | Encountered a Master Thief 11315 | -6/Lower Caves | Spotted RJ-0J1(f) 11315 | -6/Lower Caves | Spotted U1-PFP(f) 11316 | -6/Lower Caves | Encountered a Master Thief 11316 | -6/Lower Caves | Encountered a Master Thief 11318 | -6/Lower Caves | Combat Drone Bay stolen by Master Thief 11321 | -6/Lower Caves | Magnetic Acceleration Cannon stolen by Master Thief 11337 | -6/Lower Caves | Energy Well stolen by Master Thief 11355 | -6/Lower Caves | Lost 6 parts (2p1n2u1w) 11368 | -6/Lower Caves | Destroyed RJ-0J1(f) 11548 | -6/Lower Caves | Core integrity fell below 50% 11564 | -6/Lower Caves | Lost 5 parts (3n1u1w) 11604 | -6/Lower Caves | Learned Research trap positions 11604 | -6/Lower Caves | Learned Extension emergency access door positions 11604 | -6/Lower Caves | Learned Factory stockpile data 11604 | -6/Lower Caves | Learned Armory terminal intel 11736 | -6/Lower Caves | Discovered new exit (range 6) 11791 | -6/Lower Caves | Build established: Mutant 12098 | -6/Lower Caves | Entered Zion 12273 | -6/Zion | Visited the Megawrench Repair Shop 12342 | -6/Zion | Discovered new exit (range 12) 12444 | -6/Zion | System corruption cleaned by Quarantine Array 12628 | -6/Zion | Received a hallucinogenic algorithm 12903 | -6/Zion | Learned Factory security intel 13346 | -6/Zion | Found Prototype Launcher 13346 | -6/Zion | Identified Rocket Array 13517 | -6/Zion | System corruption cleaned by Quarantine Array 14352 | -6/Zion | Found Prototype Device 14352 | -6/Zion | Identified Phasing AFG 14777 | -6/Zion | Found Prototype Device 14777 | -6/Zion | Identified Mobile Refinery Mk. CCLXVII 15005 | -6/Zion | Build established: Derelict-Mutant 15315 | -6/Zion | Imprinted 15318 | -6/Zion | Declared Zion's savior 15998 | -6/Zion | Entered Proximity Caves 15998 | -5/Proximity Caves | Accompanied by 4 allies 16012 | -5/Proximity Caves | Attracted the attention of an 0b10 checkpoint 16058 | -5/Proximity Caves | Learned Factory terminal intel 16064 | -5/Proximity Caves | Build established: Scavenger-Mutant 16195 | -5/Proximity Caves | Spotted B-75 Beast 16212 | -5/Proximity Caves | Allies destroyed B-75 Beast 16266 | -5/Proximity Caves | Lost 4 parts (1p1n2u) 16921 | -5/Proximity Caves | Snuck into a huge 0b10 base via the rear entrance 17352 | -5/Proximity Caves | Discovered new exit (range 3) 17535 | -5/Proximity Caves | Entered Factory 17535 | -5/Factory | Accompanied by 6 allies 17535 | -5/Factory | Evolved 2 slots: Propulsion x2 17538 | -5/Factory | Loaded intel: 26 terminal locations 17645 | -5/Factory | Retrieved Zion intel report: Trap Installations 17756 | -5/Factory | Retrieved Zion intel report: Branch Access 17756 | -5/Factory | Identified exit to Upper Caves 17757 | -5/Factory | Zion Hacker squad teleported in 17951 | -5/Factory | Zion Kinetic Resupply teleported in 18062 | -5/Factory | Spotted B-75 Beast 18135 | -5/Factory | First assault squad dispatched 18329 | -5/Factory | Lost 3 parts (1p2u) 18381 | -5/Factory | Retrieved Zion intel report: Prototype Stockpiles 18382 | -5/Factory | Zion Recon squad teleported in 18411 | -5/Factory | Zion Hacking Resupply teleported in 18807 | -5/Factory | Entered Upper Caves 18807 | -5/Upper Caves | Accompanied by 1 ally 18808 | -5/Upper Caves | Encountered a Warlord checkpoint 18909 | -5/Upper Caves | Attracted the attention of an 0b10 checkpoint 18934 | -5/Upper Caves | Attracted the attention of an 0b10 outpost 18984 | -5/Upper Caves | Lost 5 parts (1p2n2w) 18998 | -5/Upper Caves | Discovered new exit (range 9) 19028 | -5/Upper Caves | Entered another Upper Caves area 19215 | -5/Upper Caves | Learned Factory terminal intel 19235 | -5/Upper Caves | Build established: Mutant 19467 | -5/Upper Caves | Discovered new exit (range 15) 19797 | -5/Upper Caves | Build established: Derelict-Mutant 19868 | -5/Upper Caves | Entered Zhirov 19868 | -5/Zhirov | Discovered new exit (range 3) 19947 | -5/Zhirov | Learned location of Quarantine (-2) 19947 | -5/Zhirov | Learned location of Testing (-3) 19947 | -5/Zhirov | Learned location of Command (-1) 20027 | -5/Zhirov | Found Alien Artifact 20027 | -5/Zhirov | Identified Integrated Dissipator 20027 | -5/Zhirov | Installed Integrated Dissipator, increased core heat dissipation (+20) 20055 | -5/Zhirov | Found Alien Artifact 20302 | -5/Zhirov | Entered Proximity Caves 20302 | -4/Proximity Caves | Spotted B-86 Titan 20607 | -4/Proximity Caves | Build established: Mutant 20685 | -4/Proximity Caves | Attracted the attention of an 0b10 checkpoint 20995 | -4/Proximity Caves | Build established: Derelict-Mutant 21091 | -4/Proximity Caves | Discovered new exit (range 12) 21184 | -4/Proximity Caves | Learned Research terminal intel 21379 | -4/Proximity Caves | Entered Factory 21379 | -4/Factory | Evolved 2 slots: Weapon x2 21380 | -4/Factory | Identified exit to Research 21381 | -4/Factory | Loaded intel: 28 terminal locations 21434 | -4/Factory | Retrieved Zion intel report: Trap Installations 21435 | -4/Factory | Zion Trap Resupply teleported in 21963 | -4/Factory | Build established: Mutant 21993 | -4/Factory | Zion Infowar Resupply teleported in 22006 | -4/Factory | Found Prototype Device 22006 | -4/Factory | Identified Exp. ECM Suite 22166 | -4/Factory | Lost 4 parts (3u1w) 22170 | -4/Factory | Zion Thermal Resupply teleported in 22326 | -4/Factory | Discovered new exit (range 16) 22343 | -4/Factory | Identified exit to Extension 22344 | -4/Factory | Entered Extension 22460 | -4/Extension | Zion Fire squad teleported in 22474 | -4/Extension | Build established: Skirmisher 22495 | -4/Extension | Rescued a captive Derelict 22640 | -4/Extension | Zion Kinetic Resupply teleported in 22776 | -4/Extension | Zion Heavy squad teleported in 22796 | -4/Extension | Rescued A7 22821 | -4/Extension | Zion Light squad teleported in 23041 | -4/Extension | Build established: Commander-Tank 23194 | -4/Extension | Spotted B-86 Titan 23203 | -4/Extension | Spotted B-86 Titan 23209 | -4/Extension | Allies destroyed B-86 Titan 23216 | -4/Extension | Allies destroyed B-86 Titan 23272 | -4/Extension | Zion Fire squad teleported in 23321 | -4/Extension | Rescued a captive Derelict 23349 | -4/Extension | Rescued a captive Derelict 23352 | -4/Extension | Rescued a captive Derelict 23384 | -4/Extension | Rescued a captive Derelict 23384 | -4/Extension | Rescued a captive Derelict 23428 | -4/Extension | Retrieved Zion intel report: Prototype Schematics 23438 | -4/Extension | Rescued a captive Derelict 23442 | -4/Extension | Rescued a captive Derelict 23475 | -4/Extension | Rescued a captive Derelict 23476 | -4/Extension | Rescued a captive Derelict 23594 | -4/Extension | First assault squad dispatched 23611 | -4/Extension | Incoming assault squad redirected 23635 | -4/Extension | Terminal network hard line cut 23690 | -4/Extension | Found Prototype Protection 23690 | -4/Extension | Identified Zio. Heavy Carapace 23694 | -4/Extension | Found Prototype Protection 23694 | -4/Extension | Identified Zio. Weapon Casing 23766 | -4/Extension | Discovered exit to Research (range 10) 23768 | -4/Extension | Discovered new exit (range 6) 23844 | -4/Extension | Entered Cetus 23844 | -4/Cetus | Accompanied by 17 allies (A7) 23849 | -4/Cetus | Acquired a Cetus Manufacturing Module code from A7 23863 | -4/Cetus | Spotted Cetus Guard 23864 | -4/Cetus | Spotted Cetus Guard 23864 | -4/Cetus | Spotted Cetus Guard 23865 | -4/Cetus | Spotted Cetus Guard 23872 | -4/Cetus | Allies destroyed Cetus Guard 23874 | -4/Cetus | Allies destroyed Cetus Guard 23875 | -4/Cetus | Allies destroyed Cetus Guard 23876 | -4/Cetus | Allies destroyed Cetus Guard 23939 | -4/Cetus | Started Cetus Manufacturing Module 23963 | -4/Cetus | Discovered new exit (range 16) 23964 | -4/Cetus | Manufactured an Enhanced Grunt 23989 | -4/Cetus | Manufactured an Enhanced Grunt 24014 | -4/Cetus | Manufactured an Enhanced Grunt 24024 | -4/Cetus | P-70 Sage assimilated allied 0V-24I(h) 24039 | -4/Cetus | Manufactured an Enhanced Grunt 24039 | -4/Cetus | Spotted Cetus Guard 24039 | -4/Cetus | Spotted Cetus Guard 24041 | -4/Cetus | Spotted Cetus Guard 24041 | -4/Cetus | Spotted Cetus Guard 24044 | -4/Cetus | Allies destroyed Cetus Guard 24047 | -4/Cetus | Allies destroyed Cetus Guard 24047 | -4/Cetus | Allies destroyed Cetus Guard 24050 | -4/Cetus | Cetus Manufacturing Module disabled 24053 | -4/Cetus | Allies destroyed Cetus Guard 24059 | -4/Cetus | Discovered exit to Research (range 15) 24072 | -4/Cetus | System corruption reached 10% 24077 | -4/Cetus | Scared off Revision 17 24183 | -4/Cetus | Escorted A7 to Cetus Mainframe 24234 | -4/Cetus | Entered Archives 24234 | -4/Archives | Accompanied by 15 allies (A7) 24239 | -4/Archives | Received a hacking code to weaken MAIN.C 24289 | -4/Archives | Met Zhirov 24295 | -4/Archives | Reinforcements dispatched to Archives 24327 | -4/Archives | Read partially decrypted archive contents 24330 | -4/Archives | Discovered new exit (range 15) 24340 | -4/Archives | Reinforcements dispatched to Archives 24342 | -4/Archives | Zhirov warped through subspace 24344 | -4/Archives | Found Adv. Powered Armor 24360 | -4/Archives | Zhirov detonated Archives 24368 | -4/Archives | Build established: Scavenger-Mutant 24405 | -4/Archives | Discovered exit to Research (range 15) 24461 | -4/Archives | Discovered new exit (range 15) 24586 | -4/Archives | Identified exit to Hub_04(d) 24588 | -4/Archives | Entered Hub_04(d) 24588 | -4/Hub_04(d) | Discovered exit to Research (range 11) 24868 | -4/Hub_04(d) | Incoming investigation squad redirected 24911 | -4/Hub_04(d) | Retrieved Zion intel report: Depthwide Sectors/-1 24912 | -4/Hub_04(d) | Zion Resource Resupply teleported in 24942 | -4/Hub_04(d) | Zion Heavy Resupply teleported in 25039 | -4/Hub_04(d) | Zion Trap Resupply teleported in 25185 | -4/Hub_04(d) | Destroyed 8 combat bots 25372 | -4/Hub_04(d) | Zion Kinetic Resupply teleported in 25678 | -4/Hub_04(d) | Discovered exit to Research (range 9) 25741 | -4/Hub_04(d) | Build established: Trapper-Skirmisher 25776 | -4/Hub_04(d) | Lost 4 parts (1p2n1u) 25954 | -4/Hub_04(d) | Network Hub disabled 25956 | -4/Hub_04(d) | Spotted Lightning 25961 | -4/Hub_04(d) | Terminal network hard line cut 26088 | -4/Hub_04(d) | First assault squad dispatched 26093 | -4/Hub_04(d) | Entered Research 26093 | -3/Research | Evolved 2 slots: Utility x2 26094 | -3/Research | Loaded intel: 82 trap records 26095 | -3/Research | Loaded intel: 22 terminal locations 26343 | -3/Research | First assault squad dispatched 26372 | -3/Research | Zion Defense Resupply teleported in 26425 | -3/Research | Found Hvy. Reflective Plating 26562 | -3/Research | System corruption reached 10% 26563 | -3/Research | Lost 7 parts (1p2n4u) 26614 | -3/Research | Lost 4 parts (1p3w) 26625 | -3/Research | Found Quantum Capacitor 26657 | -3/Research | Incoming assault squad redirected 26766 | -3/Research | Lost 9 parts (1p5n3w) 26785 | -3/Research | Found Antimissile System 26828 | -3/Research | Zion Hacker squad teleported in 26840 | -3/Research | Zion Heavy squad teleported in 27028 | -3/Research | Retrieved Zion intel report: Active Garrisons 27029 | -3/Research | Zion Recon squad teleported in 27059 | -3/Research | Discovered new exit (range 77) 27159 | -3/Research | Core integrity fell below 50% 27179 | -3/Research | Lost 4 parts (1p1n2w) 27229 | -3/Research | Identified exit to Testing 27230 | -3/Research | Entered Testing 27275 | -3/Testing | Spotted PG-BVXTS15046 27317 | -3/Testing | Build established: Scavenger-Mutant 27337 | -3/Testing | Retrieved Zion intel report: Main Access 27337 | -3/Testing | Identified exit to Research 27402 | -3/Testing | Retrieved Zion intel report: Prototype Schematics 27422 | -3/Testing | Found Prototype Device 27422 | -3/Testing | Identified Adv. Kinecellerator 27509 | -3/Testing | Retrieved Zion intel report: Emergency Access 27615 | -3/Testing | Retrieved Zion intel report: Unaware Analyses 27747 | -3/Testing | Fabricated Tri-rail Accelerator? 27869 | -3/Testing | Spotted PH-XGIRHPYGG4 27883 | -3/Testing | Rewired PH-XGIRHPYGG4 27902 | -3/Testing | Scanned by Researcher 27961 | -3/Testing | Destroyed 7 combat bots 27971 | -3/Testing | Lost 3 parts (1p1n1w) 27980 | -3/Testing | First assault squad dispatched 27986 | -3/Testing | Found Prototype Reactor 27986 | -3/Testing | Identified Zero-point Reactor 28095 | -3/Testing | System corruption reached 30% 28109 | -3/Testing | Lost 4 parts (1n3w) 28175 | -3/Testing | Retrieved Zion intel report: Prototype Schematics 28233 | -3/Testing | Found Hvy. Reactive Plating 28237 | -3/Testing | Spotted Striker 28238 | -3/Testing | Spotted Striker 28281 | -3/Testing | Destroyed Striker 28397 | -3/Testing | Found Prototype Ballistic Cannon 28397 | -3/Testing | Identified Omega Cannon 28452 | -3/Testing | Terminal network hard line cut 28465 | -3/Testing | Found Prototype Energy Cannon 28574 | -3/Testing | Core integrity fell below 20% 28588 | -3/Testing | Entered Research 28588 | -2/Research | Evolved 2 slots: Propulsion x2 28614 | -2/Research | Lost 8 parts (2p2n3u1w) 28641 | -2/Research | Zion Zionite Resupply teleported in 28649 | -2/Research | Found Prototype Protection 28649 | -2/Research | Identified Zio. Shade Carapace 28655 | -2/Research | Found Zio. Weapon Casing 28951 | -2/Research | Build established: Messiah-Mutant 29138 | -2/Research | Lost 3 parts (1n1u1w) 29154 | -2/Research | Identified Potential Cannon 29253 | -2/Research | Found Prototype Device 29253 | -2/Research | Identified Exp. Force Field 29257 | -2/Research | Found Exp. Force Field 29347 | -2/Research | Incoming investigation squad redirected 29442 | -2/Research | Incoming investigation squad redirected 29478 | -2/Research | Spotted B-90 Cyclops 29531 | -2/Research | Lost 6 parts (2p2u2w) 29554 | -2/Research | Discovered new exit (range 8) 29557 | -2/Research | Identified exit to Quarantine 29558 | -2/Research | Entered Quarantine 29563 | -2/Quarantine | Cryocooling Duct disabled 29578 | -2/Quarantine | Ambient heat levels rising (+20) 29578 | -2/Quarantine | Non-combat units ordered to evacuate 29580 | -2/Quarantine | Found Alien Artifact 29580 | -2/Quarantine | Identified Phase Redirector 29606 | -2/Quarantine | Found Alien Reactor 29606 | -2/Quarantine | Identified Matter Drive 29762 | -2/Quarantine | Retrieved Zion intel report: Prototype Stockpiles 29853 | -2/Quarantine | Found Alien Artifact 29854 | -2/Quarantine | Identified Hpw. Transdimensional Reconstructor 29854 | -2/Quarantine | Warped through subspace 29856 | -2/Quarantine | Found Hpw. Transdimensional Reconstructor 29856 | -2/Quarantine | Warped through subspace 29891 | -2/Quarantine | Build established: Mutant 29923 | -2/Quarantine | Found Alien Artifact 29923 | -2/Quarantine | Identified Core Reset Matrix 29923 | -2/Quarantine | Identified Transdimensional Reconstructor 29923 | -2/Quarantine | Used Core Reset Matrix 29927 | -2/Quarantine | Detected hypermatrix surge 29927 | -2/Quarantine | Sensed 6 artifacts in vicinity 29933 | -2/Quarantine | Retrieved Zion intel report: Unaware Analyses 29944 | -2/Quarantine | Retrieved Zion intel report: Prototype Schematics 29983 | -2/Quarantine | Found Core Cannon 30031 | -2/Quarantine | Spotted Fortress 30063 | -2/Quarantine | Lost 3 parts (2n1u) 30069 | -2/Quarantine | Discovered new exit (range 6) 30071 | -2/Quarantine | Identified exit to Section 7 30071 | -2/Quarantine | Entered Section 7 30072 | -2/Section 7 | Sensed 17 artifacts in vicinity 30080 | -2/Section 7 | Found Integrated Dissipator 30080 | -2/Section 7 | Installed Integrated Dissipator, increased core heat dissipation (+20) 30137 | -2/Section 7 | Core integrity fell below 50% 30206 | -2/Section 7 | Core integrity fell below 20% 30214 | -2/Section 7 | Warped through subspace 30246 | -2/Section 7 | Lost 10 parts (1p4n3u2w) 30278 | -2/Section 7 | Spotted Alpha 7 30279 | -2/Section 7 | Spotted Alpha 7 30286 | -2/Section 7 | Destroyed by H-88 Terminator with KE Penetrator Last Messages --------------- >>\\ZION-SEEK-2 [ Targeting Active Garrisons... ] 30224_ Dropped Med. Storage Unit. 30229_ System corrupted: Energy discharge (-63). 30230_ >> Machine Analyzer network decryption results: 30230_ Repair Station x1 30230_ Slug penetrates Door. 30235_ O-32 Director: "IFF HANDSHAKE FAILED. SECURING TERMINAL." 30236_ Detecting system override signal. 30240_ ALERT: Suspicious activity at Terminal 7020. Dispatching Investigation squad. 30280_ Penetrated by Slug. 30280_ Slug penetrates Wall. 30281_ Lgt. Neutrino Core destroyed. 30281_ Slug penetrates Wall. 30281_ Zio. Biocell destroyed. 30283_ Penetrated by Slug. 30283_ Slug penetrates Wall. 30283_ Zio. Biocell destroyed. 30286_ Penetrated by Slug. Map ----- +----------------------------------------------------+ | ??"""?""???????# """ #????????????????????? | | ??"""??????????# "!" #????????????????????? | | ???????????????# """ #????????????????????? | | ???????????????# """"""" #????????????????????? | | ???????????????# """"""" #????????????????????? | | ???????????????# #????????????????????? | | ???????????????# #????????????????????? | | ???????????????#########+####????????????????????? | | ????????????????##???# #??????????????????????? | | ?????""?????? ???# #??????????????????????? | | ?????""?????""" """??# #??????????????????????? | | ?????""?????""" """??+ #??????????????????????? | | ??????S?????""" """ ?# #??????????????????????? | | ?????""??????? ?# #?????#??" ????????????? | | ?????""?????""" """ # u##### # ????????????? | | ?????""?????""" """ # / ???????????? | | ????????????""" """ + / ???????????? | | ???"""???? # / ???????????? | | ???"?"??# # / ???????????? | | ???"""??# * !?# ##### #????????????????? | | ????????# ! ?# #?????#????????????????? | | ????????###########??# #??????????????????????? | | ?????????????????????# #??????????????????????? | | ?????????????????????# #??????????????????????? | | ?????????????????????# #??????????????????????? | | ?????????????????????# @#??????????????????????? | | ?????????????????????#A #??????????????????????? | | ?????????????????????# #??????????????????????? | | ?????????????????????# #??????????????????????? | | ?????????????????????# #??????????????????????? | | ?????????????????????# #??????????????????????? | | ?????????????????????# #??????????????????????? | | ?????????????????????#h #??????????????????????? | | ?????????????????????# #??????????????????????? | | ?????????????????????# ???????????????????????? | | ?????????????????????# ???????????????????????? | | ?????????????????????#hh ???????????????????????? | | ?????????????????????# ???????????????????????? | | ?????????????????????# ???????????????????????? | | ?????????????????????# ???????????????????????? | | ??????????????????????? ?????????????????!!!???? | | ?????????????????????????????????????????????????? | | ?????????????????????????????????????????????????? | | ?????????????????????????????????????????????????? | | ?????????????????????????????????????????????????? | | ?????????????????????????????????????????????????? | | ?????????????????????????????????????????????????? | | ?????????????????????????????????????????????????? | | ?????????????????????????????????????????????????? | | ?????????????????????????????????????????????????? | +----------------------------------------------------+ Best States ------------- Heat Dissipation 189 Coolant Potential 220 Energy Generation 55 Energy Capacity 2040 Matter Stores 300 Matter Capacity 300 Sight Range 16 Robot Scan Range 16 Terrain Scan Density 10 Jamming Range 16 Corruption Block 15 Armor Coverage 2000 Resistance: KI 40 Resistance: TH 25 Resistance: EX 20 Resistance: EM 20 Resistance: I 20 Resistance: S 20 Resistance: P 20 Propulsion Shielding 90 Weapon Shielding 100 Point Defense Rating 240 Melee Speed Boost 30 Evasion (%) 56 Targeting Accuracy 6 Melee Accuracy 6 Target Analysis 8 Recoil Reduction 6 Particle Charging 30 Offensive Hacking 20 Defensive Hacking 20 Trap Extractor Capacity 6 Item Schematics ----------------- Com. Mass Driver | -2/Quarantine | Z-intel Exp. Thermal Defense Suite | -2/Quarantine | Z-intel Spectral Analyzer | -2/Quarantine | Z-intel Centrium Light Armor Plating | -2/Quarantine | Z-intel Imp. Energy Mantle | -2/Quarantine | Z-intel Exp. Field Recycling Unit | -2/Quarantine | Z-intel Com. Particle Reactor | -2/Quarantine | Z-intel Imp. Matter Neutralizer | -2/Quarantine | Z-intel Exp. Energy Well | -2/Quarantine | Z-intel Hvy. Wave Gun | -2/Quarantine | Z-intel Adv. Kinecellerator | -2/Section 7 | Archive Robot Schematics ------------------ None Fabricated ------------ Combat Drone Bay | x1 | -6/Factory Tri-rail Accelerator | x1 | -3/Testing Alien Tech Used ----------------- Integrated Dissipator Phase Redirector Matter Drive High-powered Transdimensional Reconstructor Core Reset Matrix Core Cannon Transdimensional Reconstructor Achievements -------------- None Challenges ------------ None Game ------ Seed ContainmentSeismicMediator Manual? 0 Play Time 06:39:24 Cumulative 509.9 hours Start 2022.04.01 @ 08:11:14 End 2022.04.03 @ 11:20:21 Sessions 11 Manual Loads 0 Difficulty Rogue Special Mode None Game No. 158 Rogue 154 Adventurer 4 Explorer 0 Win Type - Total 13 Types 6/2/3/0/0/0/1/1/0 Lore% 81 Gallery% 85 Achievement% 72 Wizard Run 0 Options --------- ASCII 1 Keyboard 0 Movement Arrows Keybinds 0 Fullscreen 1 Font 18/SmallcapsGlow Map View 76x50 Tactical HUD 1 Map Filters NONE Filters NONE Steam 1 RUN: 52eea26d-8894-4c09-a301-6eec802e894b